Workbook

Sheet BCS Fair Value bbg linked
A2: Inputs (in yellow) | C2: Indicative Values | J2: Yellow cells are the inputs of the model. Sample Index components are presented for illustration purposes only. The Bank and GoC bonds as well as the weight of each component may not be representative of the actual Index composition. This tool is not updated and its only purpose is to illustrate a theoretical example of the Credit Futures contract fair value calculations. Dark green cells are the output of the model. Blue cells are the cells linked to Bloomberg terminal (value should change if the user refreshes the page) Grey cells are the calculations of the model Light green cell (C7 and D7) are optional and give the user the possibility to reverse-engineer the GoC repo rate (cell B6) based on an observed Futures price (defined by the user). This function is activated by clicking on the button next to cell D7.
A3: Trade Date | B3: =TODAY() -> 2025-07-29 | C3: Index Level* | D3: =SUMPRODUCT(N11:N32,(J11:J32-J35:J56))*10000 -> 74.46884343
A4: Settlement Date (T+1) | B4: =IF(WEEKDAY(B3+1,2)<6,B3+1,IF(WEEKDAY(B3+1,2)=6,B3+3,IF(WEEKDAY(B3+1,2)=7,B3+2,B3+1))) -> 2025-07-30 | C4: Index Fair Value* | D4: =SUMPRODUCT(N11:N32,(P11:P32-R11:R32))*10000 -> 76.74177439
A5: Futures Last Trading Day | B5: 2025-09-16 | C5: Futures contract Fair Value* | D5: =100-D4/100 -> 99.23258226
A6: GoC Repo Rate (%) | B6: 2.75 | C6: Observed Futures Price | D6: 99.225
A7: Bank Bond Repo spread (bps) | B7: 5
U8: Intermediary calculations for Bank Bonds
A9: Bank Bond | K9: GoC Benchmark bond | M9: Index calculation (yield differential * weight) | O9: Forward prices and forward yields (Bond price - (Coupon + Financing cost), based on bond futures valuation formula) | AE9: Number of days
A10: Bank Bond | B10: Description | C10: Coupon | D10: Maturity | E10: Last Price | F10: Callable? (Yes or No) | G10: Callable Date | H10: Yield to Maturity (asusming constant coupon) | I10: Yield to Call | J10: Yield to Worst (Yield to call for callable bonds, YTM for others) | K10: GoC Benchmark bond | L10: YTW of Benchmark | M10: Yield differential (in bps) | N10: Weight | O10: Forward Bank Bond Price | P10: Forward Bank Bond YTW | Q10: Forward GoC Benchmark bond Price | R10: Forward Benchmark bond YTW | S10: Forward Yield Differential | U10: AI 0 | V10: AI 2 | W10: C | X10: D2 | Y10: D1 | Z10: FV | AB10: Last Coupon Date | AC10: Next Coupon Date | AD10: Delivery Day | AE10: Settlement Date and Last Coupon Date | AF10: Last Delivery Day and Settlement Date | AG10: Last Delivery Day and Coupon Date | AH10: Coupon until delivery | AJ10: IRR validation
A11: CA89116CQ341 | B11: =_xll.BDP(A11&" ISIN","Security_DES") -> TD 3.842 05/29/31 | C11: =_xll.BDP(A11&" ISIN","CPN") -> 3.842 | D11: =_xll.BDP(A11&" ISIN","MATURITY") -> 2031-05-29 | E11: =_xll.BDH(A11&" ISIN","PX_LAST",$B$3,$B$3,"Dir=V","Dts=H") -> 100.206 | F11: =_xll.BDP(A11&" ISIN","CALLABLE") -> Y | G11: =_xll.BDP(A11&" ISIN","NXT_CALL_DT") -> 2030-05-29 | H11: =YIELD($B$4,D11,C11/100,E11,100,2,) -> 0.0380149489 | I11: =YIELD($B$4,G11,C11/100,E11,100,2,) -> 0.03794002394 | J11: =IF(F11="Y",YIELD($B$4,G11,C11/100,E11,100,2,),YIELD($B$4,D11,C11/100,E11,100,2,)) -> 0.03794002394 | K11: =B35 -> CAN 2 3/4 03/01/30 | L11: =J35 -> 0.03034742212 | M11: =(J11-L11)*10000 -> 75.92601819 | N11: 0.06680775 | O11: =E11+U11-V11-W11-W11*($B$6/100)*X11/365+(E11+U11)*($B$6/100+$B$7/10000)*Y11/365 -> 100.0721314 | P11: =IF(F11="Y",YIELD($B$5,G11,C11/100,O11,100,2),YIELD($B$5,D11,C11/100,O11,100,2)) -> 0.03824067269 | Q11: =Z35 -> 98.79747863 | R11: =YIELD($B$5,D35,C35/100,Q11,100,2) -> 0.03040268037 | S11: =(P11-R11)*10000 -> 78.37992319 | U11: =C11*AE11/365 -> 0.6526136986 | V11: =C11*AG11/365 -> 1.157863014 | W11: =IF(AH11="No coupon",0,C11/2) -> 0 | X11: =IF(AH11="No coupon",0,AD11-AC11) -> 0 | Y11: =AD11-$B$4 -> 48 | Z11: =E11+U11-V11-W11-W11*($B$6/100)*X11/365+(E11+U11)*($B$6/100+$B$7/10000)*Y11/365 -> 100.0721314 | AB11: =_xll.BDP(A11&" ISIN","PREV_CPN_DT") -> 2025-05-29 | AC11: =_xll.BDP(A11&" ISIN","NXT_CPN_DT") -> 2025-11-29 | AD11: =$B$5 -> 2025-09-16 | AE11: =$B$4-AB11 -> 62 | AF11: =AD11-$B$4 -> 48 | AG11: =IF((AD11-AC11)<1,AD11-AB11,AD11-AC11) -> 110 | AH11: =IF((AD11-AC11)<1,"No coupon","Coupon") -> No coupon | AJ11: =(O11+V11-(E11+U11)+W11)/((E11+U11)*Y11/365-W11*(X11/365)) -> 0.028
A12: CA06368L5G77 | B12: =_xll.BDP(A12&" ISIN","Security_DES") -> BMO 4.42 07/17/29 | C12: =_xll.BDP(A12&" ISIN","CPN") -> 4.42 | D12: =_xll.BDP(A12&" ISIN","MATURITY") -> 2029-07-17 | E12: =_xll.BDH(A12&" ISIN","PX_LAST",$B$3,$B$3,"Dir=V","Dts=H") -> 103.048 | F12: =_xll.BDP(A12&" ISIN","CALLABLE") -> Y | G12: =_xll.BDP(A12&" ISIN","NXT_CALL_DT") -> 2029-06-17 | H12: =YIELD($B$4,D12,C12/100,E12,100,2,) -> 0.03587859978 | I12: =YIELD($B$4,G12,C12/100,E12,100,2,) -> 0.03570900487 | J12: =IF(F12="Y",YIELD($B$4,G12,C12/100,E12,100,2,),YIELD($B$4,D12,C12/100,E12,100,2,)) -> 0.03570900487 | K12: =B36 -> CAN 4 03/01/29 | L12: 0.0292747562 | M12: 64.3424867 | N12: 0.06198005 | O12: =E12+U12-V12-W12-W12*($B$6/100)*X12/365+(E12+U12)*($B$6/100+$B$7/10000)*Y12/365 -> 102.8467619 | P12: 0.0360080434 | Q12: =Z36 -> 103.492885 | R12: 0.02930255644 | S12: 67.05486964 | U12: 0.1574246575 | V12: 0.7386849315 | W12: 0 | X12: =IF(AH12="No coupon",0,AD12-AC12) -> 0 | Y12: 48 | Z12: =E12+U12-V12-W12-W12*($B$6/100)*X12/365+(E12+U12)*($B$6/100+$B$7/10000)*Y12/365 -> 102.8467619 | AB12: =_xll.BDP(A12&" ISIN","PREV_CPN_DT") -> 2025-07-17 | AC12: =_xll.BDP(A12&" ISIN","NXT_CPN_DT") -> 2026-01-17 | AD12: =$B$5 -> 2025-09-16 | AE12: 13 | AF12: 48 | AG12: =IF((AD12-AC12)<1,AD12-AB12,AD12-AC12) -> 61 | AH12: =IF((AD12-AC12)<1,"No coupon","Coupon") -> No coupon | AJ12: =(O12+V12-(E12+U12)+W12)/((E12+U12)*Y12/365-W12*(X12/365)) -> 0.028
A13: CA06368LNK84 | B13: =_xll.BDP(A13&" ISIN","Security_DES") -> BMO 5.039 05/29/28 | C13: =_xll.BDP(A13&" ISIN","CPN") -> 5.039 | D13: =_xll.BDP(A13&" ISIN","MATURITY") -> 2028-05-29 | E13: =_xll.BDH(A13&" ISIN","PX_LAST",$B$3,$B$3,"Dir=V","Dts=H") -> 104.27 | F13: =_xll.BDP(A13&" ISIN","CALLABLE") -> Y | G13: =_xll.BDP(A13&" ISIN","NXT_CALL_DT") -> 2028-04-29 | H13: 0.03441074313 | I13: 0.0339588662 | J13: =IF(F13="Y",YIELD($B$4,G13,C13/100,E13,100,2,),YIELD($B$4,D13,C13/100,E13,100,2,)) -> 0.0339588662 | K13: =B37 -> CAN 3 1/2 03/01/28 | L13: 0.02821514586 | M13: 57.43720347 | N13: 0.0619213 | O13: =E13+U13-V13-W13-W13*($B$6/100)*X13/365+(E13+U13)*($B$6/100+$B$7/10000)*Y13/365 -> 103.9944309 | P13: 0.03429955529 | Q13: 101.6040841 | R13: 0.02819632414 | S13: 61.0323114 | U13: 0.855939726 | V13: 1.51860274 | W13: 0 | X13: 0 | Y13: 48 | Z13: 103.9944309 | AB13: =_xll.BDP(A13&" ISIN","PREV_CPN_DT") -> 2025-05-29 | AC13: =_xll.BDP(A13&" ISIN","NXT_CPN_DT") -> 2025-11-29 | AD13: 2025-09-16 | AE13: 62 | AF13: 48 | AG13: 110 | AH13: No coupon | AJ13: 0.028
A14: CA779926FY56 | B14: =_xll.BDP(A14&" ISIN","Security_DES") -> RY 3.626 12/10/28 | C14: =_xll.BDP(A14&" ISIN","CPN") -> 3.626 | D14: =_xll.BDP(A14&" ISIN","MATURITY") -> 2028-12-10 | E14: =_xll.BDH(A14&" ISIN","PX_LAST",$B$3,$B$3,"Dir=V","Dts=H") -> 100.583 | F14: =_xll.BDP(A14&" ISIN","CALLABLE") -> Y | G14: =_xll.BDP(A14&" ISIN","NXT_CALL_DT") -> 2027-12-10 | H14: 0.03439855624 | I14: 0.03365724291 | J14: =IF(F14="Y",YIELD($B$4,G14,C14/100,E14,100,2,),YIELD($B$4,D14,C14/100,E14,100,2,)) -> 0.03365724291 | K14: CAN 2 3/4 09/01/27 | L14: 0.02780123479 | M14: 58.56008122 | N14: 0.05955787 | O14: =E14+U14-V14-W14-W14*($B$6/100)*X14/365+(E14+U14)*($B$6/100+$B$7/10000)*Y14/365 -> 100.4783511 | P14: 0.0339998037 | Q14: 99.95163753 | R14: 0.02775162262 | S14: 62.48181075 | U14: 0.4967123288 | V14: 0.9735561644 | W14: 0 | X14: 0 | Y14: 48 | Z14: 100.4783511 | AB14: =_xll.BDP(A14&" ISIN","PREV_CPN_DT") -> 2025-06-10 | AC14: =_xll.BDP(A14&" ISIN","NXT_CPN_DT") -> 2025-12-10 | AD14: 2025-09-16 | AE14: 50 | AF14: 48 | AG14: 98 | AH14: No coupon | AJ14: 0.028
A15: CA06418MX742 | B15: =_xll.BDP(A15&" ISIN","Security_DES") -> BNS 3.807 11/15/28 | C15: =_xll.BDP(A15&" ISIN","CPN") -> 3.807 | D15: =_xll.BDP(A15&" ISIN","MATURITY") -> 2028-11-15 | E15: =_xll.BDH(A15&" ISIN","PX_LAST",$B$3,$B$3,"Dir=V","Dts=H") -> 100.977 | F15: =_xll.BDP(A15&" ISIN","CALLABLE") -> Y | G15: =_xll.BDP(A15&" ISIN","NXT_CALL_DT") -> 2027-11-15 | H15: 0.03488945166 | I15: 0.03358726877 | J15: =IF(F15="Y",YIELD($B$4,G15,C15/100,E15,100,2,),YIELD($B$4,D15,C15/100,E15,100,2,)) -> 0.03358726877 | K15: CAN 2 3/4 09/01/27 | L15: 0.02780123479 | M15: 57.86033977 | N15: 0.05244873 | O15: =E15+U15-V15-W15-W15*($B$6/100)*X15/365+(E15+U15)*($B$6/100+$B$7/10000)*Y15/365 -> 100.8510889 | P15: 0.03394032241 | Q15: 99.95163753 | R15: 0.02775162262 | S15: 61.88699784 | U15: 0.792690411 | V15: 1.293336986 | W15: 0 | X15: 0 | Y15: 48 | Z15: 100.8510889 | AB15: =_xll.BDP(A15&" ISIN","PREV_CPN_DT") -> 2025-05-15 | AC15: =_xll.BDP(A15&" ISIN","NXT_CPN_DT") -> 2025-11-15 | AD15: 2025-09-16 | AE15: 76 | AF15: 48 | AG15: 124 | AH15: No coupon | AJ15: 0.028
A16: CA13607LF997 | B16: =_xll.BDP(A16&" ISIN","Security_DES") -> CM 3.8 12/10/30 | C16: =_xll.BDP(A16&" ISIN","CPN") -> 3.8 | D16: =_xll.BDP(A16&" ISIN","MATURITY") -> 2030-12-10 | E16: =_xll.BDH(A16&" ISIN","PX_LAST",$B$3,$B$3,"Dir=V","Dts=H") -> 100.384 | F16: =_xll.BDP(A16&" ISIN","CALLABLE") -> Y | G16: =_xll.BDP(A16&" ISIN","NXT_CALL_DT") -> 2029-12-10 | H16: 0.03719604757 | I16: 0.03702962809 | J16: =IF(F16="Y",YIELD($B$4,G16,C16/100,E16,100,2,),YIELD($B$4,D16,C16/100,E16,100,2,)) -> 0.03702962809 | K16: CAN 3 1/2 09/01/29 | L16: 0.02983306245 | M16: 71.96565646 | N16: 0.05199169 | O16: =E16+U16-V16-W16-W16*($B$6/100)*X16/365+(E16+U16)*($B$6/100+$B$7/10000)*Y16/365 -> 100.2558239 | P16: 0.03732980997 | Q16: 101.8981437 | R16: 0.02987719007 | S16: 74.52619905 | U16: 0.5205479452 | V16: 1.020273973 | W16: 0 | X16: 0 | Y16: 48 | Z16: 100.2558239 | AB16: =_xll.BDP(A16&" ISIN","PREV_CPN_DT") -> 2025-06-10 | AC16: =_xll.BDP(A16&" ISIN","NXT_CPN_DT") -> 2025-12-10 | AD16: 2025-09-16 | AE16: 50 | AF16: 48 | AG16: 98 | AH16: No coupon | AJ16: 0.028
A17: CA06415GDJ63 | B17: =_xll.BDP(A17&" ISIN","Security_DES") -> BNS 3.934 05/03/32 | C17: =_xll.BDP(A17&" ISIN","CPN") -> 3.934 | D17: =_xll.BDP(A17&" ISIN","MATURITY") -> 2032-05-03 | E17: =_xll.BDH(A17&" ISIN","PX_LAST",$B$3,$B$3,"Dir=V","Dts=H") -> 100.832 | F17: =_xll.BDP(A17&" ISIN","CALLABLE") -> Y | G17: =_xll.BDP(A17&" ISIN","NXT_CALL_DT") -> 2027-05-03 | H17: 0.03792505206 | I17: 0.03439839476 | J17: 0.03439839476 | K17: CAN 1 1/4 03/01/27 | L17: 0.02776936412 | M17: =(J17-L17)*10000 -> 66.29030633 | N17: 0.0497877 | O17: 100.6894273 | P17: 0.03493252333 | Q17: 97.84104797 | R17: 0.02770530969 | S17: 72.27213644 | U17: 0.9484712329 | V17: 1.465819178 | W17: 0 | X17: 0 | Y17: 48 | Z17: 100.6894273 | AB17: =_xll.BDP(A17&" ISIN","PREV_CPN_DT") -> 2025-05-03 | AC17: =_xll.BDP(A17&" ISIN","NXT_CPN_DT") -> 2025-11-03 | AD17: 2025-09-16 | AE17: 88 | AF17: 48 | AG17: 136 | AH17: No coupon | AJ17: 0.028
A18: CA89117FPG86 | B18: =_xll.BDP(A18&" ISIN","Security_DES") -> TD 3.06 01/26/32 | C18: =_xll.BDP(A18&" ISIN","CPN") -> 3.06 | D18: =_xll.BDP(A18&" ISIN","MATURITY") -> 2032-01-26 | E18: =_xll.BDH(A18&" ISIN","PX_LAST",$B$3,$B$3,"Dir=V","Dts=H") -> 99.601 | F18: =_xll.BDP(A18&" ISIN","CALLABLE") -> Y | G18: =_xll.BDP(A18&" ISIN","NXT_CALL_DT") -> 2027-01-26 | H18: 0.03128375746 | I18: 0.03336735464 | J18: 0.03336735464 | K18: CAN 1 09/01/26 | L18: 0.02763822311 | M18: 57.29131529 | N18: 0.04865419 | O18: 99.5654625 | P18: =IF(F18="Y",YIELD($B$5,G18,C18/100,O18,100,2),YIELD($B$5,D18,C18/100,O18,100,2)) -> 0.03387412645 | Q18: 98.3533968 | R18: 0.02752473697 | S18: 63.49389478 | U18: 0.03353424658 | V18: 0.4359452055 | W18: 0 | X18: 0 | Y18: 48 | Z18: 99.5654625 | AB18: =_xll.BDP(A18&" ISIN","PREV_CPN_DT") -> 2025-07-26 | AC18: =_xll.BDP(A18&" ISIN","NXT_CPN_DT") -> 2026-01-26 | AD18: 2025-09-16 | AE18: 4 | AF18: 48 | AG18: 52 | AH18: No coupon | AJ18: 0.028
A19: CA89117GX510 | B19: =_xll.BDP(A19&" ISIN","Security_DES") -> TD 5.491 09/08/28 | C19: =_xll.BDP(A19&" ISIN","CPN") -> 5.491 | D19: =_xll.BDP(A19&" ISIN","MATURITY") -> 2028-09-08 | E19: =_xll.BDH(A19&" ISIN","PX_LAST",$B$3,$B$3,"Dir=V","Dts=H") -> 106.021 | F19: =_xll.BDP(A19&" ISIN","CALLABLE") -> N | H19: 0.03429255551 | J19: 0.03429255551 | K19: CAN 3 1/4 09/01/28 | L19: =J43 -> 0.02872710226 | M19: 55.65453247 | N19: 0.04775212 | O19: 105.7181733 | P19: 0.03453418003 | Q19: 101.0596248 | R19: 0.02873497994 | S19: 57.99200098 | U19: 2.166312329 | V19: 0.1203506849 | W19: 2.7455 | X19: 8 | Y19: 48 | Z19: 105.7181733 | AB19: =_xll.BDP(A19&" ISIN","PREV_CPN_DT") -> 2025-03-08 | AC19: =_xll.BDP(A19&" ISIN","NXT_CPN_DT") -> 2025-09-08 | AD19: 2025-09-16 | AE19: 144 | AF19: 48 | AG19: 8 | AH19: Coupon | AJ19: 0.02800212376
A20: CA63306AHT66 | B20: =_xll.BDP(A20&" ISIN","Security_DES") -> NACN 5.023 02/01/29 | C20: =_xll.BDP(A20&" ISIN","CPN") -> 5.023 | D20: =_xll.BDP(A20&" ISIN","MATURITY") -> 2029-02-01 | E20: =_xll.BDH(A20&" ISIN","PX_LAST",$B$3,$B$3,"Dir=V","Dts=H") -> 104.986 | F20: =_xll.BDP(A20&" ISIN","CALLABLE") -> N | H20: 0.03498135237 | J20: 0.03498135237 | K20: CAN 3 1/4 09/01/28 | L20: 0.02872710226 | M20: 62.54250108 | N20: 0.04743285 | O20: 104.6917434 | P20: 0.03534745205 | Q20: 101.0596248 | R20: 0.02873497994 | S20: 66.12472119 | U20: 2.463334247 | V20: 0.6330356164 | W20: 2.5115 | X20: 46 | Y20: 48 | Z20: 104.6917434 | AB20: =_xll.BDP(A20&" ISIN","PREV_CPN_DT") -> 2025-02-01 | AC20: =_xll.BDP(A20&" ISIN","NXT_CPN_DT") -> 2025-08-01 | AD20: 2025-09-16 | AE20: 179 | AF20: 48 | AG20: 46 | AH20: Coupon | AJ20: 0.02801145658
A21: CA780086WK63 | B21: =_xll.BDP(A21&" ISIN","Security_DES") -> RY 5.01 02/01/33 | C21: =_xll.BDP(A21&" ISIN","CPN") -> 5.01 | D21: =_xll.BDP(A21&" ISIN","MATURITY") -> 2033-02-01 | E21: =_xll.BDH(A21&" ISIN","PX_LAST",$B$3,$B$3,"Dir=V","Dts=H") -> 103.364 | F21: =_xll.BDP(A21&" ISIN","CALLABLE") -> Y | G21: =_xll.BDP(A21&" ISIN","NXT_CALL_DT") -> 2028-02-01 | H21: 0.04477141038 | I21: 0.03592482613 | J21: 0.03592482613 | K21: CAN 2 3/4 09/01/27 | L21: 0.02780123479 | M21: 81.23591341 | N21: 0.04588294 | O21: 103.065533 | P21: 0.03648900851 | Q21: 99.95163753 | R21: 0.02775162262 | S21: 87.37385884 | U21: 2.456958904 | V21: 0.6313972603 | W21: 2.505 | X21: 46 | Y21: 48 | Z21: 103.065533 | AB21: =_xll.BDP(A21&" ISIN","PREV_CPN_DT") -> 2025-02-01 | AC21: =_xll.BDP(A21&" ISIN","NXT_CPN_DT") -> 2025-08-01 | AD21: 2025-09-16 | AE21: 179 | AF21: 48 | AG21: 46 | AH21: Coupon | AJ21: 0.02801160616
A22: CA779926HR87 | B22: =_xll.BDP(A22&" ISIN","Security_DES") -> RY 4.279 02/04/35 | C22: =_xll.BDP(A22&" ISIN","CPN") -> 4.279 | D22: =_xll.BDP(A22&" ISIN","MATURITY") -> 2035-02-04 | E22: =_xll.BDH(A22&" ISIN","PX_LAST",$B$3,$B$3,"Dir=V","Dts=H") -> 100.881 | F22: =_xll.BDP(A22&" ISIN","CALLABLE") -> Y | G22: =_xll.BDP(A22&" ISIN","NXT_CALL_DT") -> 2030-02-04 | H22: 0.04165801768 | I22: 0.04063173167 | J22: 0.04063173167 | K22: CAN 3 1/2 09/01/29 | L22: 0.02983306245 | M22: 107.9866922 | N22: 0.04544802 | O22: 100.7434252 | P22: 0.04091039054 | Q22: 101.8981437 | R22: 0.02987719007 | S22: 110.3320047 | U22: 2.133638356 | V22: 0.5041013699 | W22: 2.1395 | X22: 43 | Y22: 48 | Z22: 100.7434252 | AB22: =_xll.BDP(A22&" ISIN","PREV_CPN_DT") -> 2025-01-29 | AC22: =_xll.BDP(A22&" ISIN","NXT_CPN_DT") -> 2025-08-04 | AD22: 2025-09-16 | AE22: 182 | AF22: 48 | AG22: 43 | AH22: Coupon | AJ22: 0.0280094791
A23: CA779926DJ08 | B23: =_xll.BDP(A23&" ISIN","Security_DES") -> RY 4 10/17/30 | C23: =_xll.BDP(A23&" ISIN","CPN") -> 4 | D23: =_xll.BDP(A23&" ISIN","MATURITY") -> 2030-10-17 | E23: =_xll.BDH(A23&" ISIN","PX_LAST",$B$3,$B$3,"Dir=V","Dts=H") -> 101.316 | F23: =_xll.BDP(A23&" ISIN","CALLABLE") -> Y | G23: =_xll.BDP(A23&" ISIN","NXT_CALL_DT") -> 2029-10-17 | H23: 0.03719043291 | I23: 0.03659015548 | J23: 0.03659015548 | K23: CAN 3 1/2 09/01/29 | L23: 0.02983306245 | M23: 67.57093033 | N23: 0.04526767 | O23: 101.1672342 | P23: 0.0368895533 | Q23: 101.8981437 | R23: 0.02987719007 | S23: 70.12363233 | U23: 1.139726027 | V23: 1.665753425 | W23: 0 | X23: 0 | Y23: 48 | Z23: 101.1672342 | AB23: =_xll.BDP(A23&" ISIN","PREV_CPN_DT") -> 2025-04-17 | AC23: =_xll.BDP(A23&" ISIN","NXT_CPN_DT") -> 2025-10-17 | AD23: 2025-09-16 | AE23: 104 | AF23: 48 | AG23: 152 | AH23: No coupon | AJ23: 0.028
A24: CA06418YXB96 | B24: =_xll.BDP(A24&" ISIN","Security_DES") -> BNS 3.734 06/27/31 | C24: =_xll.BDP(A24&" ISIN","CPN") -> 3.734 | D24: =_xll.BDP(A24&" ISIN","MATURITY") -> 2031-06-27 | E24: =_xll.BDH(A24&" ISIN","PX_LAST",$B$3,$B$3,"Dir=V","Dts=H") -> 99.584 | F24: =_xll.BDP(A24&" ISIN","CALLABLE") -> Y | G24: =_xll.BDP(A24&" ISIN","NXT_CALL_DT") -> 2030-06-27 | H24: 0.03812801236 | J24: 0.03827173462 | K24: CAN 1 1/4 06/01/30 | L24: 0.03071439845 | M24: 75.57336168 | N24: 0.044566 | O24: 99.46434948 | P24: 0.03856754075 | Q24: 92.03959297 | R24: 0.03078903729 | S24: 77.78503454 | U24: 1.278767123 | V24: 1.769813699 | W24: 0 | X24: 0 | Y24: 48 | Z24: 99.46434948 | AB24: =_xll.BDP(A24&" ISIN","PREV_CPN_DT") -> 2025-03-27 | AC24: =_xll.BDP(A24&" ISIN","NXT_CPN_DT") -> 2025-12-27 | AD24: 2025-09-16 | AE24: 125 | AF24: 48 | AG24: 173 | AH24: No coupon | AJ24: 0.028
A25: CA13607LSJ30 | B25: =_xll.BDP(A25&" ISIN","Security_DES") -> CM 5 12/07/26 | C25: =_xll.BDP(A25&" ISIN","CPN") -> 5 | D25: =_xll.BDP(A25&" ISIN","MATURITY") -> 2026-12-07 | E25: =_xll.BDH(A25&" ISIN","PX_LAST",$B$3,$B$3,"Dir=V","Dts=H") -> 102.392 | F25: =_xll.BDP(A25&" ISIN","CALLABLE") -> N | H25: 0.03176411243 | J25: =IF(F25="Y",YIELD($B$4,G25,C25/100,E25,100,2,),YIELD($B$4,D25,C25/100,E25,100,2,)) -> 0.03176411243 | K25: CAN 1 09/01/26 | L25: 0.02763822311 | M25: 41.25889313 | N25: 0.03796107 | O25: 102.1141661 | P25: =IF(F25="Y",YIELD($B$5,G25,C25/100,O25,100,2),YIELD($B$5,D25,C25/100,O25,100,2)) -> 0.03221856439 | Q25: 98.3533968 | R25: 0.02752473697 | S25: 46.93827423 | U25: 0.7260273973 | V25: 1.383561644 | W25: 0 | X25: 0 | Y25: 48 | Z25: 102.1141661 | AB25: =_xll.BDP(A25&" ISIN","PREV_CPN_DT") -> 2025-06-07 | AC25: =_xll.BDP(A25&" ISIN","NXT_CPN_DT") -> 2025-12-07 | AD25: 2025-09-16 | AE25: 53 | AF25: 48 | AG25: 101 | AH25: No coupon | AJ25: 0.028
A26: CA06369ZCL63 | B26: =_xll.BDP(A26&" ISIN","Security_DES") -> BMO 4.077 03/05/35 | C26: =_xll.BDP(A26&" ISIN","CPN") -> 4.077 | D26: =_xll.BDP(A26&" ISIN","MATURITY") -> 2035-03-05 | E26: =_xll.BDH(A26&" ISIN","PX_LAST",$B$3,$B$3,"Dir=V","Dts=H") -> 99.804 | F26: =_xll.BDP(A26&" ISIN","CALLABLE") -> Y | G26: =_xll.BDP(A26&" ISIN","NXT_CALL_DT") -> 2030-03-05 | H26: 0.04101498351 | J26: 0.0412345284 | K26: CAN 2 3/4 03/01/30 | L26: 0.03034742212 | M26: 108.8710628 | N26: 0.03727713 | O26: 99.65645544 | P26: 0.04161732861 | Q26: 98.79747863 | R26: 0.03040268037 | S26: 112.1464823 | U26: 1.641969863 | V26: 0.1228684932 | W26: 2.0385 | X26: 11 | Y26: 48 | Z26: 99.65645544 | AB26: =_xll.BDP(A26&" ISIN","PREV_CPN_DT") -> 2025-03-05 | AC26: =_xll.BDP(A26&" ISIN","NXT_CPN_DT") -> 2025-09-05 | AD26: 2025-09-16 | AE26: 147 | AF26: 48 | AG26: 11 | AH26: Coupon | AJ26: 0.02800231314
A27: CA13607PG574 | B27: =_xll.BDP(A27&" ISIN","Security_DES") -> CM 4.15 04/02/35 | C27: =_xll.BDP(A27&" ISIN","CPN") -> 4.15 | D27: =_xll.BDP(A27&" ISIN","MATURITY") -> 2035-04-02 | E27: =_xll.BDH(A27&" ISIN","PX_LAST",$B$3,$B$3,"Dir=V","Dts=H") -> 99.981 | F27: =_xll.BDP(A27&" ISIN","CALLABLE") -> Y | G27: =_xll.BDP(A27&" ISIN","NXT_CALL_DT") -> 2030-04-02 | H27: 0.04151795218 | I27: =YIELD($B$4,G27,C27/100,E27,100,2,) -> 0.04153370183 | J27: 0.04153370183 | K27: CAN 2 3/4 03/01/30 | L27: 0.03034742212 | M27: 111.862797 | N27: 0.0372376 | O27: =E27+U27-V27-W27-W27*($B$6/100)*X27/365+(E27+U27)*($B$6/100+$B$7/10000)*Y27/365 -> 99.80837785 | P27: 0.04196327095 | Q27: 98.79747863 | R27: 0.03040268037 | S27: 115.6059058 | U27: 1.353013699 | V27: 1.898767123 | W27: 0 | X27: 0 | Y27: 48 | Z27: 99.80837785 | AB27: =_xll.BDP(A27&" ISIN","PREV_CPN_DT") -> 2025-04-02 | AC27: =_xll.BDP(A27&" ISIN","NXT_CPN_DT") -> 2025-10-02 | AD27: 2025-09-16 | AE27: 119 | AF27: 48 | AG27: 167 | AH27: No coupon | AJ27: 0.028
A28: CA06369ZCJ18 | B28: =_xll.BDP(A28&" ISIN","Security_DES") -> BMO 6.034 09/07/33 | C28: =_xll.BDP(A28&" ISIN","CPN") -> 6.034 | D28: =_xll.BDP(A28&" ISIN","MATURITY") -> 2033-09-07 | E28: =_xll.BDH(A28&" ISIN","PX_LAST",$B$3,$B$3,"Dir=V","Dts=H") -> 106.604 | F28: =_xll.BDP(A28&" ISIN","CALLABLE") -> Y | G28: =_xll.BDP(A28&" ISIN","NXT_CALL_DT") -> 2028-09-07 | H28: 0.05030605888 | I28: =YIELD($B$4,G28,C28/100,E28,100,2,) -> 0.03757605675 | J28: 0.03757605675 | K28: CAN 3 1/4 09/01/28 | L28: 0.02872710226 | M28: 88.48954494 | N28: 0.03685441 | O28: =E28+U28-V28-W28-W28*($B$6/100)*X28/365+(E28+U28)*($B$6/100+$B$7/10000)*Y28/365 -> 106.234602 | P28: 0.03797435383 | Q28: 101.0596248 | R28: 0.02873497994 | S28: 92.39373899 | U28: 2.397068493 | V28: 0.1487835616 | W28: 3.017 | X28: 9 | Y28: 48 | Z28: 106.234602 | AB28: =_xll.BDP(A28&" ISIN","PREV_CPN_DT") -> 2025-03-07 | AC28: =_xll.BDP(A28&" ISIN","NXT_CPN_DT") -> 2025-09-07 | AD28: 2025-09-16 | AE28: 145 | AF28: 48 | AG28: 9 | AH28: Coupon | AJ28: 0.02800260841
A29: CA06418MQT40 | B29: =_xll.BDP(A29&" ISIN","Security_DES") -> BNS 4.95 08/01/34 | C29: =_xll.BDP(A29&" ISIN","CPN") -> 4.95 | D29: =_xll.BDP(A29&" ISIN","MATURITY") -> 2034-08-01 | E29: =_xll.BDH(A29&" ISIN","PX_LAST",$B$3,$B$3,"Dir=V","Dts=H") -> 103.566 | F29: =_xll.BDP(A29&" ISIN","CALLABLE") -> Y | G29: =_xll.BDP(A29&" ISIN","NXT_CALL_DT") -> 2029-08-01 | H29: 0.04464610424 | J29: 0.03977471384 | K29: CAN 4 03/01/29 | L29: =J53 -> 0.0292747562 | M29: 104.9995764 | N29: 0.03115158 | O29: 103.2764094 | P29: 0.04027022946 | Q29: 103.492885 | R29: 0.02930255644 | S29: 109.6767302 | U29: 2.427534247 | V29: 0.6238356164 | W29: 2.475 | X29: 46 | Y29: 48 | Z29: 103.2764094 | AB29: =_xll.BDP(A29&" ISIN","PREV_CPN_DT") -> 2025-02-01 | AC29: =_xll.BDP(A29&" ISIN","NXT_CPN_DT") -> 2025-08-01 | AD29: 2025-09-16 | AE29: 179 | AF29: 48 | AG29: 46 | AH29: Coupon | AJ29: 0.02801144488
A30: CA63309ZNN47 | B30: =_xll.BDP(A30&" ISIN","Security_DES") -> NACN 4.26 02/15/35 | C30: =_xll.BDP(A30&" ISIN","CPN") -> 4.26 | D30: =_xll.BDP(A30&" ISIN","MATURITY") -> 2035-02-15 | E30: =_xll.BDH(A30&" ISIN","PX_LAST",$B$3,$B$3,"Dir=V","Dts=H") -> 100.623 | F30: =_xll.BDP(A30&" ISIN","CALLABLE") -> Y | G30: =_xll.BDP(A30&" ISIN","NXT_CALL_DT") -> 2030-02-15 | H30: 0.04179936316 | I30: =YIELD($B$4,G30,C30/100,E30,100,2,) -> 0.04107828167 | J30: 0.04107828167 | K30: CAN 3 1/2 09/01/29 | L30: 0.02983306245 | M30: 112.4521922 | N30: 0.03026347 | O30: =E30+U30-V30-W30-W30*($B$6/100)*X30/365+(E30+U30)*($B$6/100+$B$7/10000)*Y30/365 -> 100.8043117 | P30: 0.04058371302 | Q30: 101.8981437 | R30: 0.02987719007 | S30: 107.0652295 | U30: 2.31090411 | V30: 0.3734794521 | W30: 2.13 | X30: 32 | Y30: 48 | Z30: 100.8043117 | AB30: =_xll.BDP(A30&" ISIN","PREV_CPN_DT") -> 2025-01-13 | AC30: =_xll.BDP(A30&" ISIN","NXT_CPN_DT") -> 2025-08-15 | AD30: 2025-09-16 | AE30: 198 | AF30: 48 | AG30: 32 | AH30: Coupon | AJ30: 0.02800699412
A31: CA89116CMX25 | B31: =_xll.BDP(A31&" ISIN","Security_DES") -> TD 4.231 02/01/35 | C31: =_xll.BDP(A31&" ISIN","CPN") -> 4.231 | D31: =_xll.BDP(A31&" ISIN","MATURITY") -> 2035-02-01 | E31: =_xll.BDH(A31&" ISIN","PX_LAST",$B$3,$B$3,"Dir=V","Dts=H") -> 100.604 | F31: =_xll.BDP(A31&" ISIN","CALLABLE") -> Y | G31: =_xll.BDP(A31&" ISIN","NXT_CALL_DT") -> 2030-02-01 | J31: 0.04082763246 | K31: CAN 3 1/2 09/01/29 | L31: 0.02983306245 | M31: 109.9457001 | N31: 0.03018297 | O31: =E31+U31-V31-W31-W31*($B$6/100)*X31/365+(E31+U31)*($B$6/100+$B$7/10000)*Y31/365 -> 100.412593 | P31: =IF(F31="Y",YIELD($B$5,G31,C31/100,O31,100,2),YIELD($B$5,D31,C31/100,O31,100,2)) -> 0.04125939094 | Q31: =Z55 -> 101.8981437 | R31: =YIELD($B$5,D55,C55/100,Q31,100,2) -> 0.02987719007 | S31: =(P31-R31)*10000 -> 113.8220088 | U31: =C31*AE31/365 -> 2.086520548 | V31: =C31*AG31/365 -> 0.5332219178 | W31: =IF(AH31="No coupon",0,C31/2) -> 2.1155 | X31: =IF(AH31="No coupon",0,AD31-AC31) -> 46 | Y31: =AD31-$B$4 -> 48 | Z31: =E31+U31-V31-W31-W31*($B$6/100)*X31/365+(E31+U31)*($B$6/100+$B$7/10000)*Y31/365 -> 100.412593 | AB31: =_xll.BDP(A31&" ISIN","PREV_CPN_DT") -> 2025-01-31 | AC31: =_xll.BDP(A31&" ISIN","NXT_CPN_DT") -> 2025-08-01 | AD31: 2025-09-16 | AE31: =$B$4-AB31 -> 180 | AF31: =AD31-$B$4 -> 48 | AG31: =IF((AD31-AC31)<1,AD31-AB31,AD31-AC31) -> 46 | AH31: =IF((AD31-AC31)<1,"No coupon","Coupon") -> Coupon | AJ31: 0.02801006999
A32: CA63306AJM95 | B32: =_xll.BDP(A32&" ISIN","Security_DES") -> NACN 3.308 08/15/28 | C32: =_xll.BDP(A32&" ISIN","CPN") -> 3.308 | D32: =_xll.BDP(A32&" ISIN","MATURITY") -> 2028-08-15 | E32: =_xll.BDH(A32&" ISIN","PX_LAST",$B$3,$B$3,"Dir=V","Dts=H") -> 99.871 | F32: =_xll.BDP(A32&" ISIN","CALLABLE") -> Y | G32: =_xll.BDP(A32&" ISIN","NXT_CALL_DT") -> 2027-08-15 | H32: 0.03352597403 | I32: =YIELD($B$4,G32,C32/100,E32,100,2,) -> 0.03373374456 | J32: 0.03373374456 | K32: CAN 2 1/2 08/01/27 | L32: 0.02774894052 | M32: =(J32-L32)*10000 -> 59.84804042 | N32: 0.0295729 | O32: =E32+U32-V32-W32-W32*($B$6/100)*X32/365+(E32+U32)*($B$6/100+$B$7/10000)*Y32/365 -> 99.80558834 | P32: 0.03412713222 | Q32: 98.78074968 | R32: 0.03173932455 | S32: 23.87807678 | U32: 0.5075287671 | V32: 0.9425534247 | W32: 0 | X32: 0 | Y32: 48 | Z32: 99.80558834 | AB32: =_xll.BDP(A32&" ISIN","PREV_CPN_DT") -> 2025-06-04 | AC32: =_xll.BDP(A32&" ISIN","NXT_CPN_DT") -> 2026-02-15 | AD32: 2025-09-16 | AE32: 56 | AF32: 48 | AG32: =IF((AD32-AC32)<1,AD32-AB32,AD32-AC32) -> 104 | AH32: No coupon | AJ32: 0.028
M33: Actual Index | N33: =M11*N11+M12*N12+M13*N13+M14*N14+M15*N15+M16*N16+M17*N17+M18*N18+M19*N19+M20*N20+M21*N21+M22*N22+M23*N23+M24*N24+M25*N25+M26*N26+M27*N27+M28*N28+M32*N32+M29*N29+M30*N30+M31*N31 -> 74.46884343 | R33: Fair Value | S33: =N11*S11+N12*S12+N13*S13+N14*S14+N15*S15+N16*S16+N17*S17+N18*S18+N19*S19+N20*S20+N21*S21+N22*S22+N23*S23+N24*S24+N25*S25+N26*S26+N27*S27+N28*S28+N32*S32+N29*S29+N30*S30+N31*S31 -> 76.74177439
A34: GoC bond | U34: Intermediary calculations for GoC Benchmark Bonds
A35: 135087S47 | B35: =_xll.BDP(A35&" GOVT","Security_DES") -> CAN 2 3/4 03/01/30 | C35: =_xll.BDP(A35&" GOVT","CPN") -> 2.75 | D35: =_xll.BDP(A35&" GOVT","MATURITY") -> 2030-03-01 | E35: =_xll.BDH(A35&" GOVT","PX_LAST",$B$3,$B$3,"Dir=V","Dts=H") -> 98.788 | F35: =_xll.BDP(A35&" GOVT","CALLABLE") -> N | J35: =YIELD($B$4,D35,C35/100,E35,100,2,) -> 0.03034742212 | U35: =C35*AE35/365 -> 1.137671233 | V35: =C35*AG35/365 -> 0.1130136986 | W35: =IF(AH35="No coupon",0,C35/2) -> 1.375 | X35: =IF(AH35="No coupon",0,AD35-AC35) -> 15 | Y35: =AD35-$B$4 -> 48 | Z35: =E35+U35-V35-W35-W35*($B$6/100)*X35/365+(E35+U35)*($B$6/100)*Y35/365 -> 98.79747863 | AB35: =_xll.BDP(A35&" GOVT","PREV_CPN_DT") -> 2025-03-01 | AC35: =_xll.BDP(A35&" GOVT","NXT_CPN_DT") -> 2025-09-01 | AD35: 2025-09-16 | AE35: =$B$4-AB35 -> 151 | AF35: =AD35-$B$4 -> 48 | AG35: =IF((AD35-AC35)<1,AD35-AB35,AD35-AC35) -> 15 | AH35: =IF((AD35-AC35)<1,"No coupon","Coupon") -> Coupon | AJ35: =(Q11+V35-(E35+U35)+W35)/((E35+U35)*Y35/365-W35*(X35/365)) -> 0.0275
A36: 135087Q98 | B36: =_xll.BDP(A36&" GOVT","Security_DES") -> CAN 4 03/01/29 | C36: =_xll.BDP(A36&" GOVT","CPN") -> 4 | D36: =_xll.BDP(A36&" GOVT","MATURITY") -> 2029-03-01 | E36: =_xll.BDH(A36&" GOVT","PX_LAST",$B$3,$B$3,"Dir=V","Dts=H") -> 103.624 | F36: =_xll.BDP(A36&" GOVT","CALLABLE") -> N | J36: =YIELD($B$4,D36,C36/100,E36,100,2,) -> 0.0292747562 | K36: The fair value of a bond can be determined using the implied repo rate formula for bond futures valuation and setting the conversin factor = to 1. It is determined by isolating the futures contract price component in the following formula: | U36: 1.654794521 | V36: 0.1643835616 | W36: 2 | X36: =IF(AH36="No coupon",0,AD36-AC36) -> 15 | Y36: 48 | Z36: =E36+U36-V36-W36-W36*($B$6/100)*X36/365+(E36+U36)*($B$6/100)*Y36/365 -> 103.492885 | AB36: =_xll.BDP(A36&" GOVT","PREV_CPN_DT") -> 2025-03-01 | AC36: =_xll.BDP(A36&" GOVT","NXT_CPN_DT") -> 2025-09-01 | AD36: 2025-09-16 | AE36: 151 | AF36: 48 | AG36: =IF((AD36-AC36)<1,AD36-AB36,AD36-AC36) -> 15 | AH36: =IF((AD36-AC36)<1,"No coupon","Coupon") -> Coupon | AJ36: 0.0275
A37: 135087P57 | B37: =_xll.BDP(A37&" GOVT","Security_DES") -> CAN 3 1/2 03/01/28 | C37: =_xll.BDP(A37&" GOVT","CPN") -> 3.5 | D37: =_xll.BDP(A37&" GOVT","MATURITY") -> 2028-03-01 | E37: =_xll.BDH(A37&" GOVT","PX_LAST",$B$3,$B$3,"Dir=V","Dts=H") -> 101.679 | F37: =_xll.BDP(A37&" GOVT","CALLABLE") -> N | J37: =YIELD($B$4,D37,C37/100,E37,100,2,) -> 0.02821514586 | U37: 1.447945205 | V37: 0.1438356164 | W37: 1.75 | X37: 15 | Y37: 48 | Z37: =E37+U37-V37-W37-W37*($B$6/100)*X37/365+(E37+U37)*($B$6/100)*Y37/365 -> 101.6040841 | AB37: =_xll.BDP(A37&" GOVT","PREV_CPN_DT") -> 2025-03-01 | AC37: =_xll.BDP(A37&" GOVT","NXT_CPN_DT") -> 2025-09-01 | AD37: 2025-09-16 | AE37: 151 | AF37: 48 | AG37: 15 | AH37: Coupon | AJ37: 0.0275
A38: 135087N83 | B38: =_xll.BDP(A38&" GOVT","Security_DES") -> CAN 2 3/4 09/01/27 | C38: =_xll.BDP(A38&" GOVT","CPN") -> 2.75 | D38: =_xll.BDP(A38&" GOVT","MATURITY") -> 2027-09-01 | E38: =_xll.BDH(A38&" GOVT","PX_LAST",$B$3,$B$3,"Dir=V","Dts=H") -> 99.938 | F38: =_xll.BDP(A38&" GOVT","CALLABLE") -> N | J38: 0.02780123479 | U38: 1.137671233 | V38: 0.1130136986 | W38: 1.375 | X38: 15 | Y38: 48 | Z38: =E38+U38-V38-W38-W38*($B$6/100)*X38/365+(E38+U38)*($B$6/100)*Y38/365 -> 99.95163753 | AB38: =_xll.BDP(A38&" GOVT","PREV_CPN_DT") -> 2025-03-01 | AC38: =_xll.BDP(A38&" GOVT","NXT_CPN_DT") -> 2025-09-01 | AD38: 2025-09-16 | AE38: 151 | AF38: 48 | AG38: 15 | AH38: Coupon | AJ38: 0.0275
A39: 135087N83 | B39: =_xll.BDP(A39&" GOVT","Security_DES") -> CAN 2 3/4 09/01/27 | C39: =_xll.BDP(A39&" GOVT","CPN") -> 2.75 | D39: =_xll.BDP(A39&" GOVT","MATURITY") -> 2027-09-01 | E39: =_xll.BDH(A39&" GOVT","PX_LAST",$B$3,$B$3,"Dir=V","Dts=H") -> 99.938 | F39: =_xll.BDP(A39&" GOVT","CALLABLE") -> N | J39: 0.02780123479 | U39: 1.137671233 | V39: 0.1130136986 | W39: 1.375 | X39: 15 | Y39: 48 | Z39: 99.95163753 | AB39: =_xll.BDP(A39&" GOVT","PREV_CPN_DT") -> 2025-03-01 | AC39: =_xll.BDP(A39&" GOVT","NXT_CPN_DT") -> 2025-09-01 | AD39: 2025-09-16 | AE39: 151 | AF39: 48 | AG39: 15 | AH39: Coupon | AJ39: 0.0275
A40: 135087R89 | B40: =_xll.BDP(A40&" GOVT","Security_DES") -> CAN 3 1/2 09/01/29 | C40: =_xll.BDP(A40&" GOVT","CPN") -> 3.5 | D40: =_xll.BDP(A40&" GOVT","MATURITY") -> 2029-09-01 | E40: =_xll.BDH(A40&" GOVT","PX_LAST",$B$3,$B$3,"Dir=V","Dts=H") -> 101.972 | F40: =_xll.BDP(A40&" GOVT","CALLABLE") -> N | J40: 0.02983306245 | U40: 1.447945205 | V40: 0.1438356164 | W40: 1.75 | X40: 15 | Y40: 48 | Z40: 101.8981437 | AB40: =_xll.BDP(A40&" GOVT","PREV_CPN_DT") -> 2025-03-01 | AC40: =_xll.BDP(A40&" GOVT","NXT_CPN_DT") -> 2025-09-01 | AD40: 2025-09-16 | AE40: 151 | AF40: 48 | AG40: 15 | AH40: Coupon | AJ40: 0.0275
A41: 135087M84 | B41: =_xll.BDP(A41&" GOVT","Security_DES") -> CAN 1 1/4 03/01/27 | C41: =_xll.BDP(A41&" GOVT","CPN") -> 1.25 | D41: =_xll.BDP(A41&" GOVT","MATURITY") -> 2027-03-01 | E41: =_xll.BDH(A41&" GOVT","PX_LAST",$B$3,$B$3,"Dir=V","Dts=H") -> 97.646 | F41: =_xll.BDP(A41&" GOVT","CALLABLE") -> N | J41: 0.02776936412 | U41: 0.5171232877 | V41: 0.05136986301 | W41: 0.625 | X41: 15 | Y41: 48 | Z41: 97.84104797 | AB41: =_xll.BDP(A41&" GOVT","PREV_CPN_DT") -> 2025-03-01 | AC41: =_xll.BDP(A41&" GOVT","NXT_CPN_DT") -> 2025-09-01 | AD41: 2025-09-16 | AE41: 151 | AF41: 48 | AG41: 15 | AH41: Coupon | AJ41: 0.0275
A42: 135087L93 | B42: =_xll.BDP(A42&" GOVT","Security_DES") -> CAN 1 09/01/26 | C42: =_xll.BDP(A42&" GOVT","CPN") -> 1 | D42: =_xll.BDP(A42&" GOVT","MATURITY") -> 2026-09-01 | E42: =_xll.BDH(A42&" GOVT","PX_LAST",$B$3,$B$3,"Dir=V","Dts=H") -> 98.125 | F42: =_xll.BDP(A42&" GOVT","CALLABLE") -> N | J42: 0.02763822311 | U42: 0.4136986301 | V42: 0.04109589041 | W42: 0.5 | X42: 15 | Y42: 48 | Z42: 98.3533968 | AB42: =_xll.BDP(A42&" GOVT","PREV_CPN_DT") -> 2025-03-01 | AC42: =_xll.BDP(A42&" GOVT","NXT_CPN_DT") -> 2025-09-01 | AD42: 2025-09-16 | AE42: 151 | AF42: 48 | AG42: 15 | AH42: Coupon | AJ42: 0.0275
A43: 135087Q49 | B43: =_xll.BDP(A43&" GOVT","Security_DES") -> CAN 3 1/4 09/01/28 | C43: =_xll.BDP(A43&" GOVT","CPN") -> 3.25 | D43: =_xll.BDP(A43&" GOVT","MATURITY") -> 2028-09-01 | E43: =_xll.BDH(A43&" GOVT","PX_LAST",$B$3,$B$3,"Dir=V","Dts=H") -> 101.105 | F43: =_xll.BDP(A43&" GOVT","CALLABLE") -> N | J43: 0.02872710226 | U43: 1.344520548 | V43: 0.1335616438 | W43: 1.625 | X43: 15 | Y43: 48 | Z43: 101.0596248 | AB43: =_xll.BDP(A43&" GOVT","PREV_CPN_DT") -> 2025-03-01 | AC43: =_xll.BDP(A43&" GOVT","NXT_CPN_DT") -> 2025-09-01 | AD43: 2025-09-16 | AE43: 151 | AF43: 48 | AG43: 15 | AH43: Coupon | AJ43: 0.0275
A44: 135087Q49 | B44: =_xll.BDP(A44&" GOVT","Security_DES") -> CAN 3 1/4 09/01/28 | C44: =_xll.BDP(A44&" GOVT","CPN") -> 3.25 | D44: =_xll.BDP(A44&" GOVT","MATURITY") -> 2028-09-01 | E44: =_xll.BDH(A44&" GOVT","PX_LAST",$B$3,$B$3,"Dir=V","Dts=H") -> 101.105 | F44: =_xll.BDP(A44&" GOVT","CALLABLE") -> N | J44: 0.02872710226 | U44: 1.344520548 | V44: 0.1335616438 | W44: 1.625 | X44: 15 | Y44: 48 | Z44: =E44+U44-V44-W44-W44*($B$6/100)*X44/365+(E44+U44)*($B$6/100)*Y44/365 -> 101.0596248 | AB44: =_xll.BDP(A44&" GOVT","PREV_CPN_DT") -> 2025-03-01 | AC44: =_xll.BDP(A44&" GOVT","NXT_CPN_DT") -> 2025-09-01 | AD44: 2025-09-16 | AE44: 151 | AF44: 48 | AG44: 15 | AH44: Coupon | AJ44: 0.0275
A45: 135087N83 | B45: =_xll.BDP(A45&" GOVT","Security_DES") -> CAN 2 3/4 09/01/27 | C45: =_xll.BDP(A45&" GOVT","CPN") -> 2.75 | D45: =_xll.BDP(A45&" GOVT","MATURITY") -> 2027-09-01 | E45: =_xll.BDH(A45&" GOVT","PX_LAST",$B$3,$B$3,"Dir=V","Dts=H") -> 99.938 | F45: =_xll.BDP(A45&" GOVT","CALLABLE") -> N | J45: 0.02780123479 | U45: 1.137671233 | V45: 0.1130136986 | W45: 1.375 | X45: 15 | Y45: 48 | Z45: 99.95163753 | AB45: =_xll.BDP(A45&" GOVT","PREV_CPN_DT") -> 2025-03-01 | AC45: =_xll.BDP(A45&" GOVT","NXT_CPN_DT") -> 2025-09-01 | AD45: 2025-09-16 | AE45: 151 | AF45: 48 | AG45: 15 | AH45: Coupon | AJ45: 0.0275
A46: 135087R89 | B46: =_xll.BDP(A46&" GOVT","Security_DES") -> CAN 3 1/2 09/01/29 | C46: =_xll.BDP(A46&" GOVT","CPN") -> 3.5 | D46: =_xll.BDP(A46&" GOVT","MATURITY") -> 2029-09-01 | E46: =_xll.BDH(A46&" GOVT","PX_LAST",$B$3,$B$3,"Dir=V","Dts=H") -> 101.972 | F46: =_xll.BDP(A46&" GOVT","CALLABLE") -> N | J46: 0.02983306245 | U46: 1.447945205 | V46: 0.1438356164 | W46: 1.75 | X46: 15 | Y46: 48 | Z46: 101.8981437 | AB46: =_xll.BDP(A46&" GOVT","PREV_CPN_DT") -> 2025-03-01 | AC46: =_xll.BDP(A46&" GOVT","NXT_CPN_DT") -> 2025-09-01 | AD46: 2025-09-16 | AE46: 151 | AF46: 48 | AG46: 15 | AH46: Coupon | AJ46: 0.0275
A47: 135087R89 | B47: =_xll.BDP(A47&" GOVT","Security_DES") -> CAN 3 1/2 09/01/29 | C47: =_xll.BDP(A47&" GOVT","CPN") -> 3.5 | D47: =_xll.BDP(A47&" GOVT","MATURITY") -> 2029-09-01 | E47: =_xll.BDH(A47&" GOVT","PX_LAST",$B$3,$B$3,"Dir=V","Dts=H") -> 101.972 | F47: =_xll.BDP(A47&" GOVT","CALLABLE") -> N | J47: 0.02983306245 | U47: 1.447945205 | V47: 0.1438356164 | W47: 1.75 | X47: 15 | Y47: 48 | Z47: 101.8981437 | AB47: =_xll.BDP(A47&" GOVT","PREV_CPN_DT") -> 2025-03-01 | AC47: =_xll.BDP(A47&" GOVT","NXT_CPN_DT") -> 2025-09-01 | AD47: 2025-09-16 | AE47: 151 | AF47: 48 | AG47: 15 | AH47: Coupon | AJ47: 0.0275
A48: 135087K37 | B48: =_xll.BDP(A48&" GOVT","Security_DES") -> CAN 1 1/4 06/01/30 | C48: =_xll.BDP(A48&" GOVT","CPN") -> 1.25 | D48: =_xll.BDP(A48&" GOVT","MATURITY") -> 2030-06-01 | E48: =_xll.BDH(A48&" GOVT","PX_LAST",$B$3,$B$3,"Dir=V","Dts=H") -> 91.871 | F48: =_xll.BDP(A48&" GOVT","CALLABLE") -> N | J48: 0.03071439845 | U48: 0.2020547945 | V48: 0.3664383562 | W48: 0 | X48: 0 | Y48: 48 | Z48: 92.03959297 | AB48: =_xll.BDP(A48&" GOVT","PREV_CPN_DT") -> 2025-06-01 | AC48: =_xll.BDP(A48&" GOVT","NXT_CPN_DT") -> 2025-12-01 | AD48: 2025-09-16 | AE48: 59 | AF48: 48 | AG48: 107 | AH48: No coupon | AJ48: 0.0275
A49: 135087L93 | B49: =_xll.BDP(A49&" GOVT","Security_DES") -> CAN 1 09/01/26 | C49: =_xll.BDP(A49&" GOVT","CPN") -> 1 | D49: =_xll.BDP(A49&" GOVT","MATURITY") -> 2026-09-01 | E49: =_xll.BDH(A49&" GOVT","PX_LAST",$B$3,$B$3,"Dir=V","Dts=H") -> 98.125 | F49: =_xll.BDP(A49&" GOVT","CALLABLE") -> N | J49: 0.02763822311 | U49: 0.4136986301 | V49: 0.04109589041 | W49: 0.5 | X49: 15 | Y49: 48 | Z49: 98.3533968 | AB49: =_xll.BDP(A49&" GOVT","PREV_CPN_DT") -> 2025-03-01 | AC49: =_xll.BDP(A49&" GOVT","NXT_CPN_DT") -> 2025-09-01 | AD49: 2025-09-16 | AE49: 151 | AF49: 48 | AG49: 15 | AH49: Coupon | AJ49: 0.0275
A50: 135087S47 | B50: =_xll.BDP(A50&" GOVT","Security_DES") -> CAN 2 3/4 03/01/30 | C50: =_xll.BDP(A50&" GOVT","CPN") -> 2.75 | D50: =_xll.BDP(A50&" GOVT","MATURITY") -> 2030-03-01 | E50: =_xll.BDH(A50&" GOVT","PX_LAST",$B$3,$B$3,"Dir=V","Dts=H") -> 98.788 | F50: =_xll.BDP(A50&" GOVT","CALLABLE") -> N | J50: 0.03034742212 | U50: 1.137671233 | V50: 0.1130136986 | W50: 1.375 | X50: 15 | Y50: 48 | Z50: 98.79747863 | AB50: =_xll.BDP(A50&" GOVT","PREV_CPN_DT") -> 2025-03-01 | AC50: =_xll.BDP(A50&" GOVT","NXT_CPN_DT") -> 2025-09-01 | AD50: 2025-09-16 | AE50: 151 | AF50: 48 | AG50: 15 | AH50: Coupon | AJ50: 0.0275
A51: 135087S47 | B51: =_xll.BDP(A51&" GOVT","Security_DES") -> CAN 2 3/4 03/01/30 | C51: =_xll.BDP(A51&" GOVT","CPN") -> 2.75 | D51: =_xll.BDP(A51&" GOVT","MATURITY") -> 2030-03-01 | E51: =_xll.BDH(A51&" GOVT","PX_LAST",$B$3,$B$3,"Dir=V","Dts=H") -> 98.788 | F51: =_xll.BDP(A51&" GOVT","CALLABLE") -> N | J51: 0.03034742212 | U51: 1.137671233 | V51: 0.1130136986 | W51: 1.375 | X51: 15 | Y51: 48 | Z51: 98.79747863 | AB51: =_xll.BDP(A51&" GOVT","PREV_CPN_DT") -> 2025-03-01 | AC51: =_xll.BDP(A51&" GOVT","NXT_CPN_DT") -> 2025-09-01 | AD51: 2025-09-16 | AE51: 151 | AF51: 48 | AG51: 15 | AH51: Coupon | AJ51: 0.0275
A52: 135087Q49 | B52: =_xll.BDP(A52&" GOVT","Security_DES") -> CAN 3 1/4 09/01/28 | C52: =_xll.BDP(A52&" GOVT","CPN") -> 3.25 | D52: =_xll.BDP(A52&" GOVT","MATURITY") -> 2028-09-01 | E52: =_xll.BDH(A52&" GOVT","PX_LAST",$B$3,$B$3,"Dir=V","Dts=H") -> 101.105 | F52: =_xll.BDP(A52&" GOVT","CALLABLE") -> N | J52: 0.02872710226 | U52: 1.344520548 | V52: 0.1335616438 | W52: 1.625 | X52: 15 | Y52: 48 | Z52: 101.0596248 | AB52: =_xll.BDP(A52&" GOVT","PREV_CPN_DT") -> 2025-03-01 | AC52: =_xll.BDP(A52&" GOVT","NXT_CPN_DT") -> 2025-09-01 | AD52: 2025-09-16 | AE52: 151 | AF52: 48 | AG52: 15 | AH52: Coupon | AJ52: 0.0275
A53: 135087Q98 | B53: =_xll.BDP(A53&" GOVT","Security_DES") -> CAN 4 03/01/29 | C53: =_xll.BDP(A53&" GOVT","CPN") -> 4 | D53: =_xll.BDP(A53&" GOVT","MATURITY") -> 2029-03-01 | E53: =_xll.BDH(A53&" GOVT","PX_LAST",$B$3,$B$3,"Dir=V","Dts=H") -> 103.624 | F53: =_xll.BDP(A53&" GOVT","CALLABLE") -> N | J53: 0.0292747562 | U53: 1.654794521 | V53: 0.1643835616 | W53: 2 | X53: 15 | Y53: 48 | Z53: 103.492885 | AB53: =_xll.BDP(A53&" GOVT","PREV_CPN_DT") -> 2025-03-01 | AC53: =_xll.BDP(A53&" GOVT","NXT_CPN_DT") -> 2025-09-01 | AD53: 2025-09-16 | AE53: 151 | AF53: 48 | AG53: 15 | AH53: Coupon | AJ53: 0.0275
A54: 135087R89 | B54: =_xll.BDP(A54&" GOVT","Security_DES") -> CAN 3 1/2 09/01/29 | C54: =_xll.BDP(A54&" GOVT","CPN") -> 3.5 | D54: =_xll.BDP(A54&" GOVT","MATURITY") -> 2029-09-01 | E54: =_xll.BDH(A54&" GOVT","PX_LAST",$B$3,$B$3,"Dir=V","Dts=H") -> 101.972 | F54: =_xll.BDP(A54&" GOVT","CALLABLE") -> N | J54: 0.02983306245 | U54: 1.447945205 | V54: 0.1438356164 | W54: 1.75 | X54: 15 | Y54: 48 | Z54: 101.8981437 | AB54: =_xll.BDP(A54&" GOVT","PREV_CPN_DT") -> 2025-03-01 | AC54: =_xll.BDP(A54&" GOVT","NXT_CPN_DT") -> 2025-09-01 | AD54: 2025-09-16 | AE54: 151 | AF54: 48 | AG54: 15 | AH54: Coupon | AJ54: 0.0275
A55: 135087R89 | B55: =_xll.BDP(A55&" GOVT","Security_DES") -> CAN 3 1/2 09/01/29 | C55: =_xll.BDP(A55&" GOVT","CPN") -> 3.5 | D55: =_xll.BDP(A55&" GOVT","MATURITY") -> 2029-09-01 | E55: =_xll.BDH(A55&" GOVT","PX_LAST",$B$3,$B$3,"Dir=V","Dts=H") -> 101.972 | F55: =_xll.BDP(A55&" GOVT","CALLABLE") -> N | J55: 0.02983306245 | U55: =C55*AE55/365 -> 1.447945205 | V55: =C55*AG55/365 -> 0.1438356164 | W55: =IF(AH55="No coupon",0,C55/2) -> 1.75 | X55: =IF(AH55="No coupon",0,AD55-AC55) -> 15 | Y55: =AD55-$B$4 -> 48 | Z55: =E55+U55-V55-W55-W55*($B$6/100)*X55/365+(E55+U55)*($B$6/100)*Y55/365 -> 101.8981437 | AB55: =_xll.BDP(A55&" GOVT","PREV_CPN_DT") -> 2025-03-01 | AC55: =_xll.BDP(A55&" GOVT","NXT_CPN_DT") -> 2025-09-01 | AD55: 2025-09-16 | AE55: =$B$4-AB55 -> 151 | AF55: =AD55-$B$4 -> 48 | AG55: =IF((AD55-AC55)<1,AD55-AB55,AD55-AC55) -> 15 | AH55: =IF((AD55-AC55)<1,"No coupon","Coupon") -> Coupon | AJ55: 0.0275
A56: 135087T46 | B56: =_xll.BDP(A56&" GOVT","Security_DES") -> CAN 2 1/2 08/01/27 | C56: =_xll.BDP(A56&" GOVT","CPN") -> 2.5 | D56: =_xll.BDP(A56&" GOVT","MATURITY") -> 2027-08-01 | E56: =_xll.BDH(A56&" GOVT","PX_LAST",$B$3,$B$3,"Dir=V","Dts=H") -> 99.468 | F56: =_xll.BDP(A56&" GOVT","CALLABLE") -> N | J56: 0.02774894052 | U56: 0.5205479452 | V56: 0.3150684932 | W56: 1.25 | X56: 46 | Y56: 48 | Z56: 98.78074968 | AB56: =_xll.BDP(A56&" GOVT","PREV_CPN_DT") -> 2025-05-15 | AC56: =_xll.BDP(A56&" GOVT","NXT_CPN_DT") -> 2025-08-01 | AD56: 2025-09-16 | AE56: 76 | AF56: 48 | AG56: 46 | AH56: Coupon | AJ56: =(Q32+V56-(E56+U56)+W56)/((E56+U56)*Y56/365-W56*(X56/365)) -> 0.0275
A58: *Indicative values only, offical Index values are calculated at the close of each business day by FTSE. This document is made available for general information purposes only. The information provided in this document, including financial and economic data, quotes and any analysis or interpretation thereof, is provided solely for information purposes and shall not be construed in any jurisdiction as providing any advice or recommendation with respect to the purchase or sale of any derivative instrument, underlying security or any other financial instrument or as providing legal, accounting, tax, financial or investment advice. Bourse de Montréal Inc. recommends that you consult your own advisors in accordance with your needs before making decision to take into account your particular investment objectives, financial situation and individual needs. Although care has been taken in the preparation of this document, Bourse de Montréal Inc. and/or its affiliates do not guarantee the accuracy or completeness of the information contained in this document and reserve the right to amend or review, at any time and without prior notice, the content of this document. Neither Bourse de Montréal Inc. nor any of its affiliates, directors, officers, employees or agents shall be liable for any damages, losses or costs incurred as a result of any errors or omissions in this document or of the use of or reliance upon any information appearing in this document. FTSE International Limites / FTSE Global Debt Capital Markets Inc. does not sponsor or endorse the tools presented in this document nor make any representation regarding the use of such tools, nor does it have any liability for any errors or omissions within such tools or the Indicative Index and Futures contract fair value or it calculates.

Sheet BCS Fair Value (static values)
A2: Inputs (in yellow) | C2: Indicative Values | J2: Yellow cells are the inputs of the model. Sample Index components are presented for illustration purposes only. The Bank and GoC bonds as well as the weight of each component may not be representative of the actual Index composition. This tool is not updated and its only purpose is to illustrate a theoretical example of the Credit Futures contract fair value calculations. Dark green cells are the output of the model. Blue cells are the cells linked to Bloomberg terminal (value should change if the user refreshes the page) Grey cells are the calculations of the model Light green cell (C7 and D7) are optional and give the user the possibility to reverse-engineer the GoC repo rate (cell B6) based on an observed Futures price (defined by the user). This function is activated by clicking on the button next to cell D7.
A3: Trade Date | B3: =TODAY() -> 2025-07-29 | C3: Index Level* | D3: =SUMPRODUCT(N11:N32,(J11:J32-J35:J56))*10000 -> 74.75723803
A4: Settlement Date (T+1) | B4: =IF(WEEKDAY(B3+1,2)<6,B3+1,IF(WEEKDAY(B3+1,2)=6,B3+3,IF(WEEKDAY(B3+1,2)=7,B3+2,B3+1))) -> 2025-07-30 | C4: Index Fair Value* | D4: =SUMPRODUCT(N11:N32,(P11:P32-R11:R32))*10000 -> 77.02893936
A5: Futures Last Trading Day | B5: 2025-09-16 | C5: Futures contract Fair Value* | D5: =100-D4/100 -> 99.22971061
A6: GoC Repo Rate (%) | B6: 2.75 | C6: Observed Futures Price | D6: 99.225
A7: Bank Bond Repo spread (bps) | B7: 5
U8: Intermediary calculations for Bank Bonds
A9: Bank Bond | K9: GoC Benchmark bond | M9: Index calculation (yield differential * weight) | O9: Forward prices and forward yields (Bond price - (Coupon + Financing cost), based on bond futures valuation formula) | AE9: Number of days
A10: Bank Bond | B10: Description | C10: Coupon | D10: Maturity | E10: Last Price | F10: Callable? (Yes or No) | G10: Callable Date | H10: Yield to Maturity (asusming constant coupon) | I10: Yield to Call | J10: Yield to Worst (Yield to call for callable bonds, YTM for others) | K10: GoC Benchmark bond | L10: YTW of Benchmark | M10: Yield differential (in bps) | N10: Weight | O10: Forward Bank Bond Price | P10: Forward Bank Bond YTW | Q10: Forward GoC Benchmark bond Price | R10: Forward Benchmark bond YTW | S10: Forward Yield Differential | U10: AI 0 | V10: AI 2 | W10: C | X10: D2 | Y10: D1 | Z10: FV | AB10: Last Coupon Date | AC10: Next Coupon Date | AD10: Delivery Day | AE10: Settlement Date and Last Coupon Date | AF10: Last Delivery Day and Settlement Date | AG10: Last Delivery Day and Coupon Date | AH10: Coupon until delivery | AJ10: IRR validation
A11: CA89116CQ341 | B11: TD 3.842 05/29/31 | C11: 3.842 | D11: 2031-05-29 | E11: 100.049 | F11: Y | G11: 2030-05-29 | H11: =YIELD($B$4,D11,C11/100,E11,100,2,) -> 0.03831754944 | I11: =YIELD($B$4,G11,C11/100,E11,100,2,) -> 0.03829859802 | J11: =IF(F11="Y",YIELD($B$4,G11,C11/100,E11,100,2,),YIELD($B$4,D11,C11/100,E11,100,2,)) -> 0.03829859802 | K11: =B35 -> CAN 2 3/4 03/01/30 | L11: =J35 -> 0.03057966819 | M11: =(J11-L11)*10000 -> 77.1892982 | N11: 0.06680775 | O11: =E11+U11-V11-W11-W11*($B$6/100)*X11/365+(E11+U11)*($B$6/100+$B$7/10000)*Y11/365 -> 99.91455334 | P11: =IF(F11="Y",YIELD($B$5,G11,C11/100,O11,100,2),YIELD($B$5,D11,C11/100,O11,100,2)) -> 0.03861003987 | Q11: =Z35 -> 98.69912422 | R11: =YIELD($B$5,D35,C35/100,Q11,100,2) -> 0.03064203159 | S11: =(P11-R11)*10000 -> 79.6800828 | U11: =C11*AE11/365 -> 0.6526136986 | V11: =C11*AG11/365 -> 1.157863014 | W11: =IF(AH11="No coupon",0,C11/2) -> 0 | X11: =IF(AH11="No coupon",0,AD11-AC11) -> 0 | Y11: =AD11-$B$4 -> 48 | Z11: =E11+U11-V11-W11-W11*($B$6/100)*X11/365+(E11+U11)*($B$6/100+$B$7/10000)*Y11/365 -> 99.91455334 | AB11: 2025-05-29 | AC11: 2025-11-29 | AD11: =$B$5 -> 2025-09-16 | AE11: =$B$4-AB11 -> 62 | AF11: =AD11-$B$4 -> 48 | AG11: =IF((AD11-AC11)<1,AD11-AB11,AD11-AC11) -> 110 | AH11: =IF((AD11-AC11)<1,"No coupon","Coupon") -> No coupon | AJ11: =(O11+V11-(E11+U11)+W11)/((E11+U11)*Y11/365-W11*(X11/365)) -> 0.028
A12: CA06368L5G77 | B12: BMO 4.42 07/17/29 | C12: 4.42 | D12: 2029-07-17 | E12: 102.931 | F12: Y | G12: 2029-06-17 | H12: =YIELD($B$4,D12,C12/100,E12,100,2,) -> 0.0361924603 | I12: =YIELD($B$4,G12,C12/100,E12,100,2,) -> 0.03602896115 | J12: =IF(F12="Y",YIELD($B$4,G12,C12/100,E12,100,2,),YIELD($B$4,D12,C12/100,E12,100,2,)) -> 0.03602896115 | K12: =B36 -> CAN 4 03/01/29 | L12: 0.02950071431 | M12: 65.28246839 | N12: 0.06198005 | O12: =E12+U12-V12-W12-W12*($B$6/100)*X12/365+(E12+U12)*($B$6/100+$B$7/10000)*Y12/365 -> 102.7293311 | P12: 0.03633991317 | Q12: =Z36 -> 103.4146029 | R12: 0.02953747915 | S12: 68.02434026 | U12: 0.1574246575 | V12: 0.7386849315 | W12: 0 | X12: =IF(AH12="No coupon",0,AD12-AC12) -> 0 | Y12: 48 | Z12: =E12+U12-V12-W12-W12*($B$6/100)*X12/365+(E12+U12)*($B$6/100+$B$7/10000)*Y12/365 -> 102.7293311 | AB12: 2025-07-17 | AC12: 2026-01-17 | AD12: =$B$5 -> 2025-09-16 | AE12: 13 | AF12: 48 | AG12: =IF((AD12-AC12)<1,AD12-AB12,AD12-AC12) -> 61 | AH12: =IF((AD12-AC12)<1,"No coupon","Coupon") -> No coupon | AJ12: =(O12+V12-(E12+U12)+W12)/((E12+U12)*Y12/365-W12*(X12/365)) -> 0.028
A13: CA06368LNK84 | B13: BMO 5.039 05/29/28 | C13: 5.039 | D13: 2028-05-29 | E13: 104.235 | F13: Y | G13: 2028-04-29 | H13: 0.03453824288 | I13: 0.03408993534 | J13: =IF(F13="Y",YIELD($B$4,G13,C13/100,E13,100,2,),YIELD($B$4,D13,C13/100,E13,100,2,)) -> 0.03408993534 | K13: =B37 -> CAN 3 1/2 03/01/28 | L13: 0.02838697372 | M13: 57.02961621 | N13: 0.0619213 | O13: =E13+U13-V13-W13-W13*($B$6/100)*X13/365+(E13+U13)*($B$6/100+$B$7/10000)*Y13/365 -> 103.959302 | P13: 0.03443752739 | Q13: 101.5609286 | R13: 0.0283775015 | S13: 60.60025895 | U13: 0.855939726 | V13: 1.51860274 | W13: 0 | X13: 0 | Y13: 48 | Z13: 103.959302 | AB13: 2025-05-29 | AC13: 2025-11-29 | AD13: 2025-09-16 | AE13: 62 | AF13: 48 | AG13: 110 | AH13: No coupon | AJ13: 0.028
A14: CA779926FY56 | B14: RY 3.626 12/10/28 | C14: 3.626 | D14: 2028-12-10 | E14: 100.541 | F14: Y | G14: 2027-12-10 | H14: 0.0345314816 | I14: 0.03384307985 | J14: =IF(F14="Y",YIELD($B$4,G14,C14/100,E14,100,2,),YIELD($B$4,D14,C14/100,E14,100,2,)) -> 0.03384307985 | K14: CAN 2 3/4 09/01/27 | L14: 0.02798011925 | M14: 58.62960602 | N14: 0.05955787 | O14: =E14+U14-V14-W14-W14*($B$6/100)*X14/365+(E14+U14)*($B$6/100+$B$7/10000)*Y14/365 -> 100.4361964 | P14: 0.03419676879 | Q14: 99.91550734 | R14: 0.02794252844 | S14: 62.54240352 | U14: 0.4967123288 | V14: 0.9735561644 | W14: 0 | X14: 0 | Y14: 48 | Z14: 100.4361964 | AB14: 2025-06-10 | AC14: 2025-12-10 | AD14: 2025-09-16 | AE14: 50 | AF14: 48 | AG14: 98 | AH14: No coupon | AJ14: 0.028
A15: CA06418MX742 | B15: BNS 3.807 11/15/28 | C15: 3.807 | D15: 2028-11-15 | E15: 100.931 | F15: Y | G15: 2027-11-15 | H15: 0.03503771208 | I15: 0.03379617846 | J15: =IF(F15="Y",YIELD($B$4,G15,C15/100,E15,100,2,),YIELD($B$4,D15,C15/100,E15,100,2,)) -> 0.03379617846 | K15: CAN 2 3/4 09/01/27 | L15: 0.02798011925 | M15: 58.1605921 | N15: 0.05244873 | O15: =E15+U15-V15-W15-W15*($B$6/100)*X15/365+(E15+U15)*($B$6/100+$B$7/10000)*Y15/365 -> 100.8049196 | P15: 0.03416218542 | Q15: 99.91550734 | R15: 0.02794252844 | S15: 62.1965698 | U15: 0.792690411 | V15: 1.293336986 | W15: 0 | X15: 0 | Y15: 48 | Z15: 100.8049196 | AB15: 2025-05-15 | AC15: 2025-11-15 | AD15: 2025-09-16 | AE15: 76 | AF15: 48 | AG15: 124 | AH15: No coupon | AJ15: 0.028
A16: CA13607LF997 | B16: CM 3.8 12/10/30 | C16: 3.8 | D16: 2030-12-10 | E16: 100.267 | F16: Y | G16: 2029-12-10 | H16: 0.03743835828 | I16: 0.03732209407 | J16: =IF(F16="Y",YIELD($B$4,G16,C16/100,E16,100,2,),YIELD($B$4,D16,C16/100,E16,100,2,)) -> 0.03732209407 | K16: CAN 3 1/2 09/01/29 | L16: 0.03006347668 | M16: 72.58617386 | N16: 0.05199169 | O16: =E16+U16-V16-W16-W16*($B$6/100)*X16/365+(E16+U16)*($B$6/100+$B$7/10000)*Y16/365 -> 100.1383931 | P16: 0.03763193387 | Q16: 101.8088218 | R16: 0.03011559704 | S16: 75.16336826 | U16: 0.5205479452 | V16: 1.020273973 | W16: 0 | X16: 0 | Y16: 48 | Z16: 100.1383931 | AB16: 2025-06-10 | AC16: 2025-12-10 | AD16: 2025-09-16 | AE16: 50 | AF16: 48 | AG16: 98 | AH16: No coupon | AJ16: 0.028
A17: CA06415GDJ63 | B17: BNS 3.934 05/03/32 | C17: 3.934 | D17: 2032-05-03 | E17: 100.799 | F17: Y | G17: 2027-05-03 | H17: 0.03798059466 | I17: 0.03459226177 | J17: =IF(F17="Y",YIELD($B$4,G17,C17/100,E17,100,2,),YIELD($B$4,D17,C17/100,E17,100,2,)) -> 0.03459226177 | K17: CAN 1 1/4 03/01/27 | L17: 0.02794074266 | M17: 66.51519114 | N17: 0.0497877 | O17: 100.6563058 | P17: 0.03514222174 | Q17: 97.81495395 | R17: 0.02789186066 | S17: 72.50361077 | U17: 0.9484712329 | V17: 1.465819178 | W17: 0 | X17: 0 | Y17: 48 | Z17: 100.6563058 | AB17: 2025-05-03 | AC17: 2025-11-03 | AD17: 2025-09-16 | AE17: 88 | AF17: 48 | AG17: 136 | AH17: No coupon | AJ17: 0.028
A18: CA89117FPG86 | B18: TD 3.06 01/26/32 | C18: 3.06 | D18: 2032-01-26 | E18: 99.581 | F18: Y | G18: 2027-01-26 | H18: 0.03131813496 | I18: 0.03350655026 | J18: 0.03350655026 | K18: CAN 1 09/01/26 | L18: 0.02780040992 | M18: 57.06140338 | N18: 0.04865419 | O18: 99.54538886 | P18: 0.03402666643 | Q18: 98.33633532 | R18: 0.02770866966 | S18: 63.1799677 | U18: 0.03353424658 | V18: 0.4359452055 | W18: 0 | X18: 0 | Y18: 48 | Z18: 99.54538886 | AB18: 2025-07-26 | AC18: 2026-01-26 | AD18: 2025-09-16 | AE18: 4 | AF18: 48 | AG18: 52 | AH18: No coupon | AJ18: 0.028
A19: CA89117GX510 | B19: TD 5.491 09/08/28 | C19: 5.491 | D19: 2028-09-08 | E19: 105.961 | F19: N | H19: 0.03449073703 | J19: 0.03449073703 | K19: CAN 3 1/4 09/01/28 | L19: 0.02893374186 | M19: 55.56995165 | N19: 0.04775212 | O19: 105.6579523 | P19: 0.03474165963 | Q19: 100.9984042 | R19: 0.0289510108 | S19: 57.90648834 | U19: 2.166312329 | V19: 0.1203506849 | W19: 2.7455 | X19: 8 | Y19: 48 | Z19: 105.6579523 | AB19: 2025-03-08 | AC19: 2025-09-08 | AD19: 2025-09-16 | AE19: 144 | AF19: 48 | AG19: 8 | AH19: Coupon | AJ19: 0.02800212494
A20: CA63306AHT66 | B20: NACN 5.023 02/01/29 | C20: 5.023 | D20: 2029-02-01 | E20: 104.914 | F20: N | H20: 0.03519532578 | J20: 0.03519532578 | K20: CAN 3 1/4 09/01/28 | L20: 0.02893374186 | M20: 62.61583919 | N20: 0.04743285 | O20: 104.6194783 | P20: 0.03557028672 | Q20: 100.9984042 | R20: 0.0289510108 | S20: 66.1927592 | U20: 2.463334247 | V20: 0.6330356164 | W20: 2.5115 | X20: 46 | Y20: 48 | Z20: 104.6194783 | AB20: 2025-02-01 | AC20: 2025-08-01 | AD20: 2025-09-16 | AE20: 179 | AF20: 48 | AG20: 46 | AH20: Coupon | AJ20: 0.02801146443
A21: CA780086WK63 | B21: RY 5.01 02/01/33 | C21: 5.01 | D21: 2033-02-01 | E21: 103.322 | F21: Y | G21: 2028-02-01 | H21: 0.04483666059 | I21: 0.03609825782 | J21: 0.03609825782 | K21: CAN 2 3/4 09/01/27 | L21: 0.02798011925 | M21: 81.18138572 | N21: 0.04588294 | O21: 103.0233783 | P21: 0.03667238732 | Q21: 99.91550734 | R21: 0.02794252844 | S21: 87.29858877 | U21: 2.456958904 | V21: 0.6313972603 | W21: 2.505 | X21: 46 | Y21: 48 | Z21: 103.0233783 | AB21: 2025-02-01 | AC21: 2025-08-01 | AD21: 2025-09-16 | AE21: 179 | AF21: 48 | AG21: 46 | AH21: Coupon | AJ21: 0.02801161087
A22: CA779926HR87 | B22: RY 4.279 02/04/35 | C22: 4.279 | D22: 2035-02-04 | E22: 100.773 | F22: Y | G22: 2030-02-04 | H22: 0.04179607638 | I22: 0.04089496973 | J22: 0.04089496973 | K22: CAN 3 1/2 09/01/29 | L22: 0.03006347668 | M22: 108.3149305 | N22: 0.04544802 | O22: 100.6350276 | P22: 0.0411819541 | Q22: 101.8088218 | R22: 0.03011559704 | S22: 110.6635707 | U22: 2.133638356 | V22: 0.5041013699 | W22: 2.1395 | X22: 43 | Y22: 48 | Z22: 100.6350276 | AB22: 2025-01-29 | AC22: 2025-08-04 | AD22: 2025-09-16 | AE22: 182 | AF22: 48 | AG22: 43 | AH22: Coupon | AJ22: 0.02800948923
A23: CA779926DJ08 | B23: RY 4 10/17/30 | C23: 4 | D23: 2030-10-17 | E23: 101.213 | F23: Y | G23: 2029-10-17 | H23: 0.03740798841 | I23: 0.03685417759 | J23: 0.03685417759 | K23: CAN 3 1/2 09/01/29 | L23: 0.03006347668 | M23: 67.90700911 | N23: 0.04526767 | O23: 101.063855 | P23: 0.03716266675 | Q23: 101.8088218 | R23: 0.03011559704 | S23: 70.47069713 | U23: 1.139726027 | V23: 1.665753425 | W23: 0 | X23: 0 | Y23: 48 | Z23: 101.063855 | AB23: 2025-04-17 | AC23: 2025-10-17 | AD23: 2025-09-16 | AE23: 104 | AF23: 48 | AG23: 152 | AH23: No coupon | AJ23: 0.028
A24: CA06418YXB96 | B24: BNS 3.734 06/27/31 | C24: 3.734 | D24: 2031-06-27 | E24: 99.46 | F24: Y | G24: 2030-06-27 | H24: 0.03836510442 | J24: 0.03855207254 | K24: CAN 1 1/4 06/01/30 | L24: 0.03094727042 | M24: 76.0480213 | N24: 0.044566 | O24: 99.33989288 | P24: 0.0388561389 | Q24: 91.94023494 | R24: 0.03102845339 | S24: 78.27685515 | U24: 1.278767123 | V24: 1.769813699 | W24: 0 | X24: 0 | Y24: 48 | Z24: 99.33989288 | AB24: 2025-03-27 | AC24: 2025-12-27 | AD24: 2025-09-16 | AE24: 125 | AF24: 48 | AG24: 173 | AH24: No coupon | AJ24: 0.028
A25: CA13607LSJ30 | B25: CM 5 12/07/26 | C25: 5 | D25: 2026-12-07 | E25: 102.373 | F25: N | H25: 0.03190624328 | J25: =IF(F25="Y",YIELD($B$4,G25,C25/100,E25,100,2,),YIELD($B$4,D25,C25/100,E25,100,2,)) -> 0.03190624328 | K25: CAN 1 09/01/26 | L25: 0.02780040992 | M25: 41.0583336 | N25: 0.03796107 | O25: 102.0950961 | P25: =IF(F25="Y",YIELD($B$5,G25,C25/100,O25,100,2),YIELD($B$5,D25,C25/100,O25,100,2)) -> 0.03237603263 | Q25: 98.33633532 | R25: 0.02770866966 | S25: 46.67362963 | U25: 0.7260273973 | V25: 1.383561644 | W25: 0 | X25: 0 | Y25: 48 | Z25: 102.0950961 | AB25: 2025-06-07 | AC25: 2025-12-07 | AD25: 2025-09-16 | AE25: 53 | AF25: 48 | AG25: 101 | AH25: No coupon | AJ25: 0.028
A26: CA06369ZCL63 | B26: BMO 4.077 03/05/35 | C26: 4.077 | D26: 2035-03-05 | E26: 99.678 | F26: Y | G26: 2030-03-05 | H26: 0.04117541224 | J26: =IF(F26="Y",YIELD($B$4,G26,C26/100,E26,100,2,),YIELD($B$4,D26,C26/100,E26,100,2,)) -> 0.04153872209 | K26: CAN 2 3/4 03/01/30 | L26: 0.03057966819 | M26: 109.5905389 | N26: 0.03727713 | O26: 99.52999149 | P26: =IF(F26="Y",YIELD($B$5,G26,C26/100,O26,100,2),YIELD($B$5,D26,C26/100,O26,100,2)) -> 0.04193117747 | Q26: 98.69912422 | R26: 0.03064203159 | S26: 112.8914589 | U26: 1.641969863 | V26: 0.1228684932 | W26: 2.0385 | X26: 11 | Y26: 48 | Z26: 99.52999149 | AB26: 2025-03-05 | AC26: 2025-09-05 | AD26: 2025-09-16 | AE26: 147 | AF26: 48 | AG26: 11 | AH26: Coupon | AJ26: 0.02800231603
A27: CA13607PG574 | B27: CM 4.15 04/02/35 | C27: 4.15 | D27: 2035-04-02 | E27: 99.875 | F27: Y | G27: 2030-04-02 | H27: 0.0416522121 | I27: =YIELD($B$4,G27,C27/100,E27,100,2,) -> 0.04178574762 | J27: 0.04178574762 | K27: CAN 2 3/4 03/01/30 | L27: 0.03057966819 | M27: 112.0607943 | N27: 0.0372376 | O27: =E27+U27-V27-W27-W27*($B$6/100)*X27/365+(E27+U27)*($B$6/100+$B$7/10000)*Y27/365 -> 99.70198754 | P27: 0.04222327845 | Q27: 98.69912422 | R27: 0.03064203159 | S27: 115.8124687 | U27: 1.353013699 | V27: 1.898767123 | W27: 0 | X27: 0 | Y27: 48 | Z27: 99.70198754 | AB27: 2025-04-02 | AC27: 2025-10-02 | AD27: 2025-09-16 | AE27: 119 | AF27: 48 | AG27: 167 | AH27: No coupon | AJ27: 0.028
A28: CA06369ZCJ18 | B28: BMO 6.034 09/07/33 | C28: 6.034 | D28: 2033-09-07 | E28: 106.547 | F28: Y | G28: 2028-09-07 | H28: 0.05038931065 | I28: =YIELD($B$4,G28,C28/100,E28,100,2,) -> 0.03776490525 | J28: 0.03776490525 | K28: CAN 3 1/4 09/01/28 | L28: 0.02893374186 | M28: 88.31163387 | N28: 0.03685441 | O28: =E28+U28-V28-W28-W28*($B$6/100)*X28/365+(E28+U28)*($B$6/100+$B$7/10000)*Y28/365 -> 106.1773921 | P28: 0.03817215731 | Q28: 100.9984042 | R28: 0.0289510108 | S28: 92.21146509 | U28: 2.397068493 | V28: 0.1487835616 | W28: 3.017 | X28: 9 | Y28: 48 | Z28: 106.1773921 | AB28: 2025-03-07 | AC28: 2025-09-07 | AD28: 2025-09-16 | AE28: 145 | AF28: 48 | AG28: 9 | AH28: Coupon | AJ28: 0.02800260978
A29: CA06418MQT40 | B29: BNS 4.95 08/01/34 | C29: 4.95 | D29: 2034-08-01 | E29: 103.488 | F29: Y | G29: 2029-08-01 | H29: 0.04475011756 | J29: 0.03998315063 | K29: CAN 4 03/01/29 | L29: 0.02950071431 | M29: 104.8243631 | N29: 0.03115158 | O29: =E29+U29-V29-W29-W29*($B$6/100)*X29/365+(E29+U29)*($B$6/100+$B$7/10000)*Y29/365 -> 103.1981222 | P29: 0.04048630685 | Q29: 103.4146029 | R29: 0.02953747915 | S29: 109.4882771 | U29: 2.427534247 | V29: 0.6238356164 | W29: 2.475 | X29: 46 | Y29: 48 | Z29: 103.1981222 | AB29: 2025-02-01 | AC29: 2025-08-01 | AD29: 2025-09-16 | AE29: 179 | AF29: 48 | AG29: 46 | AH29: Coupon | AJ29: 0.0280114535
A30: CA63309ZNN47 | B30: NACN 4.26 02/15/35 | C30: 4.26 | D30: 2035-02-15 | E30: 100.5 | F30: Y | G30: 2030-02-15 | H30: 0.04195653301 | I30: =YIELD($B$4,G30,C30/100,E30,100,2,) -> 0.04137701304 | J30: 0.04137701304 | K30: CAN 3 1/2 09/01/29 | L30: 0.03006347668 | M30: 113.1353635 | N30: 0.03026347 | O30: =E30+U30-V30-W30-W30*($B$6/100)*X30/365+(E30+U30)*($B$6/100+$B$7/10000)*Y30/365 -> 100.6808588 | P30: 0.04089073734 | Q30: 101.8088218 | R30: 0.03011559704 | S30: 107.751403 | U30: 2.31090411 | V30: 0.3734794521 | W30: 2.13 | X30: 32 | Y30: 48 | Z30: 100.6808588 | AB30: 2025-01-13 | AC30: 2025-08-15 | AD30: 2025-09-16 | AE30: 198 | AF30: 48 | AG30: 32 | AH30: Coupon | AJ30: 0.0280070026
A31: CA89116CMX25 | B31: TD 4.231 02/01/35 | C31: 4.231 | D31: 2035-02-01 | E31: 100.461 | F31: Y | G31: 2030-02-01 | J31: 0.04117757437 | K31: CAN 3 1/2 09/01/29 | L31: 0.03006347668 | M31: 111.1409769 | N31: 0.03018297 | O31: =E31+U31-V31-W31-W31*($B$6/100)*X31/365+(E31+U31)*($B$6/100+$B$7/10000)*Y31/365 -> 100.2690665 | P31: 0.04162064746 | Q31: 101.8088218 | R31: 0.03011559704 | S31: 115.0505042 | U31: 2.086520548 | V31: 0.5332219178 | W31: 2.1155 | X31: 46 | Y31: 48 | Z31: 100.2690665 | AB31: 2025-01-31 | AC31: 2025-08-01 | AD31: 2025-09-16 | AE31: 180 | AF31: 48 | AG31: 46 | AH31: Coupon | AJ31: 0.02801008432
A32: CA63306AJM95 | B32: NACN 3.308 08/15/28 | C32: 3.308 | D32: 2028-08-15 | E32: 99.837 | F32: Y | G32: 2027-08-15 | H32: =YIELD($B$4,D32,C32/100,E32,100,2,) -> 0.03364458668 | I32: =YIELD($B$4,G32,C32/100,E32,100,2,) -> 0.03390762624 | J32: 0.03390762624 | K32: CAN 2 1/2 08/01/27 | L32: 0.02792527103 | M32: =(J32-L32)*10000 -> 59.82355217 | N32: 0.0295729 | O32: =E32+U32-V32-W32-W32*($B$6/100)*X32/365+(E32+U32)*($B$6/100+$B$7/10000)*Y32/365 -> 99.77146314 | P32: 0.03431304931 | Q32: 98.74662672 | R32: 0.03192969245 | S32: 23.83356857 | U32: 0.5075287671 | V32: 0.9425534247 | W32: 0 | X32: 0 | Y32: 48 | Z32: 99.77146314 | AB32: 2025-06-04 | AC32: 2026-02-15 | AD32: 2025-09-16 | AE32: 56 | AF32: 48 | AG32: =IF((AD32-AC32)<1,AD32-AB32,AD32-AC32) -> 104 | AH32: No coupon | AJ32: 0.028
M33: Actual Index | N33: =M11*N11+M12*N12+M13*N13+M14*N14+M15*N15+M16*N16+M17*N17+M18*N18+M19*N19+M20*N20+M21*N21+M22*N22+M23*N23+M24*N24+M25*N25+M26*N26+M27*N27+M28*N28+M32*N32+M29*N29+M30*N30+M31*N31 -> 74.75723803 | R33: Fair Value | S33: =N11*S11+N12*S12+N13*S13+N14*S14+N15*S15+N16*S16+N17*S17+N18*S18+N19*S19+N20*S20+N21*S21+N22*S22+N23*S23+N24*S24+N25*S25+N26*S26+N27*S27+N28*S28+N32*S32+N29*S29+N30*S30+N31*S31 -> 77.02893936
A34: GoC bond | U34: Intermediary calculations for GoC Benchmark Bonds
A35: 135087S47 | B35: CAN 2 3/4 03/01/30 | C35: 2.75 | D35: 2030-03-01 | E35: 98.69 | F35: N | J35: =YIELD($B$4,D35,C35/100,E35,100,2,) -> 0.03057966819 | U35: =C35*AE35/365 -> 1.137671233 | V35: =C35*AG35/365 -> 0.1130136986 | W35: =IF(AH35="No coupon",0,C35/2) -> 1.375 | X35: =IF(AH35="No coupon",0,AD35-AC35) -> 15 | Y35: =AD35-$B$4 -> 48 | Z35: =E35+U35-V35-W35-W35*($B$6/100)*X35/365+(E35+U35)*($B$6/100)*Y35/365 -> 98.69912422 | AB35: 2025-03-01 | AC35: 2025-09-01 | AD35: =$B$5 -> 2025-09-16 | AE35: =$B$4-AB35 -> 151 | AF35: =AD35-$B$4 -> 48 | AG35: =IF((AD35-AC35)<1,AD35-AB35,AD35-AC35) -> 15 | AH35: =IF((AD35-AC35)<1,"No coupon","Coupon") -> Coupon | AJ35: =(Q11+V35-(E35+U35)+W35)/((E35+U35)*Y35/365-W35*(X35/365)) -> 0.0275
A36: 135087Q98 | B36: CAN 4 03/01/29 | C36: 4 | D36: 2029-03-01 | E36: 103.546 | F36: N | J36: =YIELD($B$4,D36,C36/100,E36,100,2,) -> 0.02950071431 | K36: The fair value of a bond can be determined using the implied repo rate formula for bond futures valuation and setting the conversin factor = to 1. It is determined by isolating the futures contract price component in the following formula: | U36: 1.654794521 | V36: 0.1643835616 | W36: 2 | X36: =IF(AH36="No coupon",0,AD36-AC36) -> 15 | Y36: 48 | Z36: =E36+U36-V36-W36-W36*($B$6/100)*X36/365+(E36+U36)*($B$6/100)*Y36/365 -> 103.4146029 | AB36: 2025-03-01 | AC36: 2025-09-01 | AD36: 2025-09-16 | AE36: 151 | AF36: 48 | AG36: =IF((AD36-AC36)<1,AD36-AB36,AD36-AC36) -> 15 | AH36: =IF((AD36-AC36)<1,"No coupon","Coupon") -> Coupon | AJ36: 0.0275
A37: 135087P57 | B37: CAN 3 1/2 03/01/28 | C37: 3.5 | D37: 2028-03-01 | E37: 101.636 | F37: N | J37: =YIELD($B$4,D37,C37/100,E37,100,2,) -> 0.02838697372 | U37: 1.447945205 | V37: 0.1438356164 | W37: 1.75 | X37: 15 | Y37: 48 | Z37: =E37+U37-V37-W37-W37*($B$6/100)*X37/365+(E37+U37)*($B$6/100)*Y37/365 -> 101.5609286 | AB37: 2025-03-01 | AC37: 2025-09-01 | AD37: 2025-09-16 | AE37: 151 | AF37: 48 | AG37: 15 | AH37: Coupon | AJ37: 0.0275
A38: 135087N83 | B38: CAN 2 3/4 09/01/27 | C38: 2.75 | D38: 2027-09-01 | E38: 99.902 | F38: N | J38: 0.02798011925 | U38: 1.137671233 | V38: 0.1130136986 | W38: 1.375 | X38: 15 | Y38: 48 | Z38: =E38+U38-V38-W38-W38*($B$6/100)*X38/365+(E38+U38)*($B$6/100)*Y38/365 -> 99.91550734 | AB38: 2025-03-01 | AC38: 2025-09-01 | AD38: 2025-09-16 | AE38: 151 | AF38: 48 | AG38: 15 | AH38: Coupon | AJ38: 0.0275
A39: 135087N83 | B39: CAN 2 3/4 09/01/27 | C39: 2.75 | D39: 2027-09-01 | E39: 99.902 | F39: N | J39: 0.02798011925 | U39: 1.137671233 | V39: 0.1130136986 | W39: 1.375 | X39: 15 | Y39: 48 | Z39: 99.91550734 | AB39: 2025-03-01 | AC39: 2025-09-01 | AD39: 2025-09-16 | AE39: 151 | AF39: 48 | AG39: 15 | AH39: Coupon | AJ39: 0.0275
A40: 135087R89 | B40: CAN 3 1/2 09/01/29 | C40: 3.5 | D40: 2029-09-01 | E40: 101.883 | F40: N | J40: 0.03006347668 | U40: 1.447945205 | V40: 0.1438356164 | W40: 1.75 | X40: 15 | Y40: 48 | Z40: 101.8088218 | AB40: 2025-03-01 | AC40: 2025-09-01 | AD40: 2025-09-16 | AE40: 151 | AF40: 48 | AG40: 15 | AH40: Coupon | AJ40: 0.0275
A41: 135087M84 | B41: CAN 1 1/4 03/01/27 | C41: 1.25 | D41: 2027-03-01 | E41: 97.62 | F41: N | J41: 0.02794074266 | U41: 0.5171232877 | V41: 0.05136986301 | W41: 0.625 | X41: 15 | Y41: 48 | Z41: 97.81495395 | AB41: 2025-03-01 | AC41: 2025-09-01 | AD41: 2025-09-16 | AE41: 151 | AF41: 48 | AG41: 15 | AH41: Coupon | AJ41: 0.0275
A42: 135087L93 | B42: CAN 1 09/01/26 | C42: 1 | D42: 2026-09-01 | E42: 98.108 | F42: N | J42: 0.02780040992 | U42: 0.4136986301 | V42: 0.04109589041 | W42: 0.5 | X42: 15 | Y42: 48 | Z42: 98.33633532 | AB42: 2025-03-01 | AC42: 2025-09-01 | AD42: 2025-09-16 | AE42: 151 | AF42: 48 | AG42: 15 | AH42: Coupon | AJ42: 0.0275
A43: 135087Q49 | B43: CAN 3 1/4 09/01/28 | C43: 3.25 | D43: 2028-09-01 | E43: 101.044 | F43: N | J43: 0.02893374186 | U43: 1.344520548 | V43: 0.1335616438 | W43: 1.625 | X43: 15 | Y43: 48 | Z43: 100.9984042 | AB43: 2025-03-01 | AC43: 2025-09-01 | AD43: 2025-09-16 | AE43: 151 | AF43: 48 | AG43: 15 | AH43: Coupon | AJ43: 0.0275
A44: 135087Q49 | B44: CAN 3 1/4 09/01/28 | C44: 3.25 | D44: 2028-09-01 | E44: 101.044 | F44: N | J44: 0.02893374186 | U44: 1.344520548 | V44: 0.1335616438 | W44: 1.625 | X44: 15 | Y44: 48 | Z44: =E44+U44-V44-W44-W44*($B$6/100)*X44/365+(E44+U44)*($B$6/100)*Y44/365 -> 100.9984042 | AB44: 2025-03-01 | AC44: 2025-09-01 | AD44: 2025-09-16 | AE44: 151 | AF44: 48 | AG44: 15 | AH44: Coupon | AJ44: 0.0275
A45: 135087N83 | B45: CAN 2 3/4 09/01/27 | C45: 2.75 | D45: 2027-09-01 | E45: 99.902 | F45: N | J45: 0.02798011925 | U45: 1.137671233 | V45: 0.1130136986 | W45: 1.375 | X45: 15 | Y45: 48 | Z45: =E45+U45-V45-W45-W45*($B$6/100)*X45/365+(E45+U45)*($B$6/100)*Y45/365 -> 99.91550734 | AB45: 2025-03-01 | AC45: 2025-09-01 | AD45: 2025-09-16 | AE45: 151 | AF45: 48 | AG45: 15 | AH45: Coupon | AJ45: 0.0275
A46: 135087R89 | B46: CAN 3 1/2 09/01/29 | C46: 3.5 | D46: 2029-09-01 | E46: 101.883 | F46: N | J46: 0.03006347668 | U46: 1.447945205 | V46: 0.1438356164 | W46: 1.75 | X46: 15 | Y46: 48 | Z46: 101.8088218 | AB46: 2025-03-01 | AC46: 2025-09-01 | AD46: 2025-09-16 | AE46: 151 | AF46: 48 | AG46: 15 | AH46: Coupon | AJ46: 0.0275
A47: 135087R89 | B47: CAN 3 1/2 09/01/29 | C47: 3.5 | D47: 2029-09-01 | E47: 101.883 | F47: N | J47: 0.03006347668 | U47: 1.447945205 | V47: 0.1438356164 | W47: 1.75 | X47: 15 | Y47: 48 | Z47: 101.8088218 | AB47: 2025-03-01 | AC47: 2025-09-01 | AD47: 2025-09-16 | AE47: 151 | AF47: 48 | AG47: 15 | AH47: Coupon | AJ47: 0.0275
A48: 135087K37 | B48: CAN 1 1/4 06/01/30 | C48: 1.25 | D48: 2030-06-01 | E48: 91.772 | F48: N | J48: 0.03094727042 | U48: 0.2020547945 | V48: 0.3664383562 | W48: 0 | X48: 0 | Y48: 48 | Z48: 91.94023494 | AB48: 2025-06-01 | AC48: 2025-12-01 | AD48: 2025-09-16 | AE48: 59 | AF48: 48 | AG48: 107 | AH48: No coupon | AJ48: 0.0275
A49: 135087L93 | B49: CAN 1 09/01/26 | C49: 1 | D49: 2026-09-01 | E49: 98.108 | F49: N | J49: 0.02780040992 | U49: 0.4136986301 | V49: 0.04109589041 | W49: 0.5 | X49: 15 | Y49: 48 | Z49: 98.33633532 | AB49: 2025-03-01 | AC49: 2025-09-01 | AD49: 2025-09-16 | AE49: 151 | AF49: 48 | AG49: 15 | AH49: Coupon | AJ49: 0.0275
A50: 135087S47 | B50: CAN 2 3/4 03/01/30 | C50: 2.75 | D50: 2030-03-01 | E50: 98.69 | F50: N | J50: 0.03057966819 | U50: 1.137671233 | V50: 0.1130136986 | W50: 1.375 | X50: 15 | Y50: 48 | Z50: 98.69912422 | AB50: 2025-03-01 | AC50: 2025-09-01 | AD50: 2025-09-16 | AE50: 151 | AF50: 48 | AG50: 15 | AH50: Coupon | AJ50: 0.0275
A51: 135087S47 | B51: CAN 2 3/4 03/01/30 | C51: 2.75 | D51: 2030-03-01 | E51: 98.69 | F51: N | J51: 0.03057966819 | U51: 1.137671233 | V51: 0.1130136986 | W51: 1.375 | X51: 15 | Y51: 48 | Z51: 98.69912422 | AB51: 2025-03-01 | AC51: 2025-09-01 | AD51: 2025-09-16 | AE51: 151 | AF51: 48 | AG51: 15 | AH51: Coupon | AJ51: 0.0275
A52: 135087Q49 | B52: CAN 3 1/4 09/01/28 | C52: 3.25 | D52: 2028-09-01 | E52: 101.044 | F52: N | J52: 0.02893374186 | U52: 1.344520548 | V52: 0.1335616438 | W52: 1.625 | X52: 15 | Y52: 48 | Z52: 100.9984042 | AB52: 2025-03-01 | AC52: 2025-09-01 | AD52: 2025-09-16 | AE52: 151 | AF52: 48 | AG52: 15 | AH52: Coupon | AJ52: 0.0275
A53: 135087Q98 | B53: CAN 4 03/01/29 | C53: 4 | D53: 2029-03-01 | E53: 103.546 | F53: N | J53: 0.02950071431 | U53: 1.654794521 | V53: 0.1643835616 | W53: 2 | X53: 15 | Y53: 48 | Z53: 103.4146029 | AB53: 2025-03-01 | AC53: 2025-09-01 | AD53: 2025-09-16 | AE53: 151 | AF53: 48 | AG53: 15 | AH53: Coupon | AJ53: 0.0275
A54: 135087R89 | B54: CAN 3 1/2 09/01/29 | C54: 3.5 | D54: 2029-09-01 | E54: 101.883 | F54: N | J54: 0.03006347668 | U54: 1.447945205 | V54: 0.1438356164 | W54: 1.75 | X54: 15 | Y54: 48 | Z54: 101.8088218 | AB54: 2025-03-01 | AC54: 2025-09-01 | AD54: 2025-09-16 | AE54: 151 | AF54: 48 | AG54: 15 | AH54: Coupon | AJ54: 0.0275
A55: 135087R89 | B55: CAN 3 1/2 09/01/29 | C55: 3.5 | D55: 2029-09-01 | E55: 101.883 | F55: N | J55: 0.03006347668 | U55: 1.447945205 | V55: 0.1438356164 | W55: 1.75 | X55: 15 | Y55: 48 | Z55: 101.8088218 | AB55: 2025-03-01 | AC55: 2025-09-01 | AD55: 2025-09-16 | AE55: 151 | AF55: 48 | AG55: 15 | AH55: Coupon | AJ55: 0.0275
A56: 135087T46 | B56: CAN 2 1/2 08/01/27 | C56: 2.5 | D56: 2027-08-01 | E56: 99.434 | F56: N | J56: 0.02792527103 | U56: 0.5205479452 | V56: 0.3150684932 | W56: 1.25 | X56: 46 | Y56: 48 | Z56: 98.74662672 | AB56: 2025-05-15 | AC56: 2025-08-01 | AD56: 2025-09-16 | AE56: 76 | AF56: 48 | AG56: 46 | AH56: Coupon | AJ56: 0.0275
A58: *Indicative values only, offical Index values are calculated at the close of each business day by FTSE. This document is made available for general information purposes only. The information provided in this document, including financial and economic data, quotes and any analysis or interpretation thereof, is provided solely for information purposes and shall not be construed in any jurisdiction as providing any advice or recommendation with respect to the purchase or sale of any derivative instrument, underlying security or any other financial instrument or as providing legal, accounting, tax, financial or investment advice. Bourse de Montréal Inc. recommends that you consult your own advisors in accordance with your needs before making decision to take into account your particular investment objectives, financial situation and individual needs. Although care has been taken in the preparation of this document, Bourse de Montréal Inc. and/or its affiliates do not guarantee the accuracy or completeness of the information contained in this document and reserve the right to amend or review, at any time and without prior notice, the content of this document. Neither Bourse de Montréal Inc. nor any of its affiliates, directors, officers, employees or agents shall be liable for any damages, losses or costs incurred as a result of any errors or omissions in this document or of the use of or reliance upon any information appearing in this document. FTSE International Limites / FTSE Global Debt Capital Markets Inc. does not sponsor or endorse the tools presented in this document nor make any representation regarding the use of such tools, nor does it have any liability for any errors or omissions within such tools or the Indicative Index and Futures contract fair value or it calculates.
